{"text_format":"1","workbook":"xlsx","n_sheets":1,"sheets":["TDSheet"],"not_rendered":{"charts":0,"images":0,"macros":1,"external_links":0,"defined_names":1,"comments":0,"pivot_tables":0},"unopened":[],"bounds":{"document_bytes":16777216,"sheet_cells":100000,"rows_first":2000,"rows_last":500,"rows_between":2000,"halvings":0,"cell_chars":16384,"cell_head_chars":4096},"cells_cut":0,"cells_raw":0,"read":"whole","date_system":"1900"}

{"sheet":"TDSheet","index":0,"n_rows":322,"n_cols":12,"rows_kept":322,"cut":false,"hidden":false,"merged":[[314,0,314,4],[315,0,315,4],[316,0,316,4],[317,0,317,4],[318,0,318,4],[319,0,319,4],[320,0,320,4],[321,0,321,4],[305,0,305,4],[306,0,306,4],[307,0,307,4],[308,0,308,4],[309,0,309,4],[310,0,310,4],[311,0,311,4],[312,0,312,4],[313,0,313,4],[296,0,296,4],[297,0,297,4],[298,0,298,4],[299,0,299,4],[300,0,300,4],[301,0,301,4],[302,0,302,4],[303,0,303,4],[304,0,304,4],[287,0,287,4],[288,0,288,4],[289,0,289,4],[290,0,290,4],[291,0,291,4],[292,0,292,4],[293,0,293,4],[294,0,294,4],[295,0,295,4],[278,0,278,4],[279,0,279,4],[280,0,280,4],[281,0,281,4],[282,0,282,4],[283,0,283,4],[284,0,284,4],[285,0,285,4],[286,0,286,4],[269,0,269,4],[270,0,270,4],[271,0,271,4],[272,0,272,4],[273,0,273,4],[274,0,274,4],[275,0,275,4],[276,0,276,4],[277,0,277,4],[260,0,260,4],[261,0,261,4],[262,0,262,4],[263,0,263,4],[264,0,264,4],[265,0,265,4],[266,0,266,4],[267,0,267,4],[268,0,268,4],[251,0,251,4],[252,0,252,4],[253,0,253,4],[254,0,254,4],[255,0,255,4],[256,0,256,4],[257,0,257,4],[258,0,258,4],[259,0,259,4],[242,0,242,4],[243,0,243,4],[244,0,244,4],[245,0,245,4],[246,0,246,4],[247,0,247,4],[248,0,248,4],[249,0,249,4],[250,0,250,4],[233,0,233,4],[234,0,234,4],[235,0,235,4],[236,0,236,4],[237,0,237,4],[238,0,238,4],[239,0,239,4],[240,0,240,4],[241,0,241,4],[224,0,224,4],[225,0,225,4],[226,0,226,4],[227,0,227,4],[228,0,228,4],[229,0,229,4],[230,0,230,4],[231,0,231,4],[232,0,232,4],[215,0,215,4],[216,0,216,4],[217,0,217,4],[218,0,218,4],[219,0,219,4],[220,0,220,4],[221,0,221,4],[222,0,222,4],[223,0,223,4],[206,0,206,4],[207,0,207,4],[208,0,208,4],[209,0,209,4],[210,0,210,4],[211,0,211,4],[212,0,212,4],[213,0,213,4],[214,0,214,4],[197,0,197,4],[198,0,198,4],[199,0,199,4],[200,0,200,4],[201,0,201,4],[202,0,202,4],[203,0,203,4],[204,0,204,4],[205,0,205,4],[188,0,188,4],[189,0,189,4],[190,0,190,4],[191,0,191,4],[192,0,192,4],[193,0,193,4],[194,0,194,4],[195,0,195,4],[196,0,196,4],[179,0,179,4],[180,0,180,4],[181,0,181,4],[182,0,182,4],[183,0,183,4],[184,0,184,4],[185,0,185,4],[186,0,186,4],[187,0,187,4],[170,0,170,4],[171,0,171,4],[172,0,172,4],[173,0,173,4],[174,0,174,4],[175,0,175,4],[176,0,176,4],[177,0,177,4],[178,0,178,4],[161,0,161,4],[162,0,162,4],[163,0,163,4],[164,0,164,4],[165,0,165,4],[166,0,166,4],[167,0,167,4],[168,0,168,4],[169,0,169,4],[152,0,152,4],[153,0,153,4],[154,0,154,4],[155,0,155,4],[156,0,156,4],[157,0,157,4],[158,0,158,4],[159,0,159,4],[160,0,160,4],[143,0,143,4],[144,0,144,4],[145,0,145,4],[146,0,146,4],[147,0,147,4],[148,0,148,4],[149,0,149,4],[150,0,150,4],[151,0,151,4],[134,0,134,4],[135,0,135,4],[136,0,136,4],[137,0,137,4],[138,0,138,4],[139,0,139,4],[140,0,140,4],[141,0,141,4],[142,0,142,4],[125,0,125,4],[126,0,126,4],[127,0,127,4],[128,0,128,4],[129,0,129,4],[130,0,130,4],[131,0,131,4],[132,0,132,4],[133,0,133,4],[116,0,116,4],[117,0,117,4],[118,0,118,4],[119,0,119,4],[120,0,120,4],[121,0,121,4],[122,0,122,4],[123,0,123,4],[124,0,124,4],[107,0,107,4],[108,0,108,4],[109,0,109,4],[110,0,110,4],[111,0,111,4],[112,0,112,4],[113,0,113,4],[114,0,114,4],[115,0,115,4],[98,0,98,4],[99,0,99,4],[100,0,100,4],[101,0,101,4],[102,0,102,4],[103,0,103,4],[104,0,104,4],[105,0,105,4],[106,0,106,4],[89,0,89,4],[90,0,90,4],[91,0,91,4],[92,0,92,4],[93,0,93,4],[94,0,94,4],[95,0,95,4],[96,0,96,4],[97,0,97,4],[80,0,80,4],[81,0,81,4],[82,0,82,4],[83,0,83,4],[84,0,84,4],[85,0,85,4],[86,0,86,4],[87,0,87,4],[88,0,88,4],[71,0,71,4],[72,0,72,4],[73,0,73,4],[74,0,74,4],[75,0,75,4],[76,0,76,4],[77,0,77,4],[78,0,78,4],[79,0,79,4],[62,0,62,4],[63,0,63,4],[64,0,64,4],[65,0,65,4],[66,0,66,4],[67,0,67,4],[68,0,68,4],[69,0,69,4],[70,0,70,4],[53,0,53,4],[54,0,54,4],[55,0,55,4],[56,0,56,4],[57,0,57,4],[58,0,58,4],[59,0,59,4],[60,0,60,4],[61,0,61,4],[44,0,44,4],[45,0,45,4],[46,0,46,4],[47,0,47,4],[48,0,48,4],[49,0,49,4],[50,0,50,4],[51,0,51,4],[52,0,52,4],[35,0,35,4],[36,0,36,4],[37,0,37,4],[38,0,38,4],[39,0,39,4],[40,0,40,4],[41,0,41,4],[42,0,42,4],[43,0,43,4],[26,0,26,4],[27,0,27,4],[28,0,28,4],[29,0,29,4],[30,0,30,4],[31,0,31,4],[32,0,32,4],[33,0,33,4],[34,0,34,4],[17,0,17,4],[18,0,18,4],[19,0,19,4],[20,0,20,4],[21,0,21,4],[22,0,22,4],[23,0,23,4],[24,0,24,4],[25,0,25,4],[8,0,8,4],[9,0,9,4],[10,0,10,4],[11,0,11,4],[12,0,12,4],[13,0,13,4],[14,0,14,4],[15,0,15,4],[16,0,16,4],[0,0,0,4],[0,5,4,5],[1,0,1,4],[2,0,2,4],[3,0,3,4],[4,0,4,4],[5,0,5,4],[6,0,6,4],[7,0,7,4]]}
["Менеджер",null,null,null,null,"Количество"]
["Партнер"]
["Заказ клиента.Адрес доставки"]
["Заказ клиента.Желаемая дата отгрузки"]
["Номенклатура",null,null,null,null,null,"Отступ",0,2,4,6,8]
["Бурдин Максим",null,null,null,null,168,{"$f":"otst($A6)","v":0},{"$f":"IF($G6=H$5,$A6,H5)","v":"Бурдин Максим"},{"$f":"IF($G6=I$5,$A6,I5)","v":2},4,6,8]
["Быковский С.А Боровинка\"Статус\"",null,null,null,null,6,{"$f":"otst($A7)","v":2},{"$f":"IF($G7=H$5,$A7,H6)","v":"Бурдин Максим"},{"$f":"IF($G7=I$5,$A7,I6)","v":"Быковский С.А Боровинка\"Статус\""},{"$f":"IF($G7=J$5,$A7,J6)","v":4},{"$f":"IF($G7=K$5,$A7,K6)","v":6},{"$f":"IF($G7=L$5,$A7,L6)","v":8}]
["627122, Тюменская обл, Заводоуковский р-н, Боровинка с, Ленина ул, дом № 6",null,null,null,null,6,4,"Бурдин Максим","Быковский С.А Боровинка\"Статус\"","627122, Тюменская обл, Заводоуковский р-н, Боровинка с, Ленина ул, дом № 6",6,8]
["23.07.2014",null,null,null,null,6,6,"Бурдин Максим","Быковский С.А Боровинка\"Статус\"","627122, Тюменская обл, Заводоуковский р-н, Боровинка с, Ленина ул, дом № 6","23.07.2014",8]
["Пивной напиток ТМ \"IGUANA\" Мохито (лимон, лайм, мята) 1,5л пэт 6,9%/6",null,null,null,null,6,8,"Бурдин Максим","Быковский С.А Боровинка\"Статус\"","627122, Тюменская обл, Заводоуковский р-н, Боровинка с, Ленина ул, дом № 6","23.07.2014","Пивной напиток ТМ \"IGUANA\" Мохито (лимон, лайм, мята) 1,5л пэт 6,9%/6"]
["Выбор \"Статус\" Мичурина",null,null,null,null,6,2,"Бурдин Максим","Выбор \"Статус\" Мичурина","627122, Тюменская обл, Заводоуковский р-н, Боровинка с, Ленина ул, дом № 6","23.07.2014","Пивной напиток ТМ \"IGUANA\" Мохито (лимон, лайм, мята) 1,5л пэт 6,9%/6"]
["627072, Тюменская обл, Омутинский р-н, Омутинское с, Мичурина ул, дом № 25",null,null,null,null,6,4,"Бурдин Максим","Выбор \"Статус\" Мичурина","627072, Тюменская обл, Омутинский р-н, Омутинское с, Мичурина ул, дом № 25","23.07.2014","Пивной напиток ТМ \"IGUANA\" Мохито (лимон, лайм, мята) 1,5л пэт 6,9%/6"]
["25.07.2014",null,null,null,null,6,6,"Бурдин Максим","Выбор \"Статус\" Мичурина","627072, Тюменская обл, Омутинский р-н, Омутинское с, Мичурина ул, дом № 25","25.07.2014","Пивной напиток ТМ \"IGUANA\" Мохито (лимон, лайм, мята) 1,5л пэт 6,9%/6"]
["Пивной напиток ТМ \"IGUANA\" Джин-тоник 1,5л пэт 6,9%/6",null,null,null,null,6,8,"Бурдин Максим","Выбор \"Статус\" Мичурина","627072, Тюменская обл, Омутинский р-н, Омутинское с, Мичурина ул, дом № 25","25.07.2014","Пивной напиток ТМ \"IGUANA\" Джин-тоник 1,5л пэт 6,9%/6"]
["ГроМ Ленина \"Статус\"",null,null,null,null,6,2,"Бурдин Максим","ГроМ Ленина \"Статус\"","627072, Тюменская обл, Омутинский р-н, Омутинское с, Мичурина ул, дом № 25","25.07.2014","Пивной напиток ТМ \"IGUANA\" Джин-тоник 1,5л пэт 6,9%/6"]
["627250, Тюменская обл, Юргинский р-н, Юргинское с, Ленина ул, дом № 50",null,null,null,null,6,4,"Бурдин Максим","ГроМ Ленина \"Статус\"","627250, Тюменская обл, Юргинский р-н, Юргинское с, Ленина ул, дом № 50","25.07.2014","Пивной напиток ТМ \"IGUANA\" Джин-тоник 1,5л пэт 6,9%/6"]
["30.07.2014",null,null,null,null,6,6,"Бурдин Максим","ГроМ Ленина \"Статус\"","627250, Тюменская обл, Юргинский р-н, Юргинское с, Ленина ул, дом № 50","30.07.2014","Пивной напиток ТМ \"IGUANA\" Джин-тоник 1,5л пэт 6,9%/6"]
["Пивной напиток ТМ \"IGUANA\" Джин-тоник 1,5л пэт 6,9%/6",null,null,null,null,6,8,"Бурдин Максим","ГроМ Ленина \"Статус\"","627250, Тюменская обл, Юргинский р-н, Юргинское с, Ленина ул, дом № 50","30.07.2014","Пивной напиток ТМ \"IGUANA\" Джин-тоник 1,5л пэт 6,9%/6"]
["Жемчужина Береговая \"Статус\"",null,null,null,null,6,2,"Бурдин Максим","Жемчужина Береговая \"Статус\"","627250, Тюменская обл, Юргинский р-н, Юргинское с, Ленина ул, дом № 50","30.07.2014","Пивной напиток ТМ \"IGUANA\" Джин-тоник 1,5л пэт 6,9%/6"]
["627110, Тюменская обл, Заводоуковский р-н, Новая Заимка с, Береговая ул, дом № 4",null,null,null,null,6,4,"Бурдин Максим","Жемчужина Береговая \"Статус\"","627110, Тюменская обл, Заводоуковский р-н, Новая Заимка с, Береговая ул, дом № 4","30.07.2014","Пивной напиток ТМ \"IGUANA\" Джин-тоник 1,5л пэт 6,9%/6"]
["09.07.2014",null,null,null,null,6,6,"Бурдин Максим","Жемчужина Береговая \"Статус\"","627110, Тюменская обл, Заводоуковский р-н, Новая Заимка с, Береговая ул, дом № 4","09.07.2014","Пивной напиток ТМ \"IGUANA\" Джин-тоник 1,5л пэт 6,9%/6"]
["Пивной напиток ТМ \"IGUANA\" Черный русский (Виски-кола) 1,5л пэт 6,9%/6",null,null,null,null,6,8,"Бурдин Максим","Жемчужина Береговая \"Статус\"","627110, Тюменская обл, Заводоуковский р-н, Новая Заимка с, Береговая ул, дом № 4","09.07.2014","Пивной напиток ТМ \"IGUANA\" Черный русский (Виски-кола) 1,5л пэт 6,9%/6"]
["Жемчужина Ленина 147 \"Статус\"",null,null,null,null,18,2,"Бурдин Максим","Жемчужина Ленина 147 \"Статус\"","627110, Тюменская обл, Заводоуковский р-н, Новая Заимка с, Береговая ул, дом № 4","09.07.2014","Пивной напиток ТМ \"IGUANA\" Черный русский (Виски-кола) 1,5л пэт 6,9%/6"]
["627111, Тюменская обл, Заводоуковский р-н, Новая Заимка с, Ленина ул, дом № 147",null,null,null,null,18,4,"Бурдин Максим","Жемчужина Ленина 147 \"Статус\"","627111, Тюменская обл, Заводоуковский р-н, Новая Заимка с, Ленина ул, дом № 147","09.07.2014","Пивной напиток ТМ \"IGUANA\" Черный русский (Виски-кола) 1,5л пэт 6,9%/6"]
["09.07.2014",null,null,null,null,18,6,"Бурдин Максим","Жемчужина Ленина 147 \"Статус\"","627111, Тюменская обл, Заводоуковский р-н, Новая Заимка с, Ленина ул, дом № 147","09.07.2014","Пивной напиток ТМ \"IGUANA\" Черный русский (Виски-кола) 1,5л пэт 6,9%/6"]
["Пивной напиток \"BATL-X\" Черри Джин 0,5л ж/б 6,9%/12",null,null,null,null,4,8,"Бурдин Максим","Жемчужина Ленина 147 \"Статус\"","627111, Тюменская обл, Заводоуковский р-н, Новая Заимка с, Ленина ул, дом № 147","09.07.2014","Пивной напиток \"BATL-X\" Черри Джин 0,5л ж/б 6,9%/12"]
["Пивной напиток ТМ \"IGUANA\" Черный русский (Амаретто) 1,5л пэт 6,9%/6",null,null,null,null,6,8,"Бурдин Максим","Жемчужина Ленина 147 \"Статус\"","627111, Тюменская обл, Заводоуковский р-н, Новая Заимка с, Ленина ул, дом № 147","09.07.2014","Пивной напиток ТМ \"IGUANA\" Черный русский (Амаретто) 1,5л пэт 6,9%/6"]
["Энергетический напиток ТМ \"IGUANA\" Драйв (красные ягоды) 0,5л ж/б /12",null,null,null,null,4,8,"Бурдин Максим","Жемчужина Ленина 147 \"Статус\"","627111, Тюменская обл, Заводоуковский р-н, Новая Заимка с, Ленина ул, дом № 147","09.07.2014","Энергетический напиток ТМ \"IGUANA\" Драйв (красные ягоды) 0,5л ж/б /12"]
["Энергетический напиток ТМ \"IGUANA\" Тропикана (апельсин, маракуйя) 0,5л ж/б /12",null,null,null,null,4,8,"Бурдин Максим","Жемчужина Ленина 147 \"Статус\"","627111, Тюменская обл, Заводоуковский р-н, Новая Заимка с, Ленина ул, дом № 147","09.07.2014","Энергетический напиток ТМ \"IGUANA\" Тропикана (апельсин, маракуйя) 0,5л ж/б /12"]
["Игнатова Н В \"Статус\"",null,null,null,null,6,2,"Бурдин Максим","Игнатова Н В \"Статус\"","627111, Тюменская обл, Заводоуковский р-н, Новая Заимка с, Ленина ул, дом № 147","09.07.2014","Энергетический напиток ТМ \"IGUANA\" Тропикана (апельсин, маракуйя) 0,5л ж/б /12"]
["627250, Тюменская обл, Юргинский р-н, Юргинское с, Ленина ул, дом № 6, корпус а",null,null,null,null,6,4,"Бурдин Максим","Игнатова Н В \"Статус\"","627250, Тюменская обл, Юргинский р-н, Юргинское с, Ленина ул, дом № 6, корпус а","09.07.2014","Энергетический напиток ТМ \"IGUANA\" Тропикана (апельсин, маракуйя) 0,5л ж/б /12"]
["09.07.2014",null,null,null,null,6,6,"Бурдин Максим","Игнатова Н В \"Статус\"","627250, Тюменская обл, Юргинский р-н, Юргинское с, Ленина ул, дом № 6, корпус а","09.07.2014","Энергетический напиток ТМ \"IGUANA\" Тропикана (апельсин, маракуйя) 0,5л ж/б /12"]
["Пивной напиток \"BATL-X\" Истребитель 0,5л ж/б 6,9%/12",null,null,null,null,2,8,"Бурдин Максим","Игнатова Н В \"Статус\"","627250, Тюменская обл, Юргинский р-н, Юргинское с, Ленина ул, дом № 6, корпус а","09.07.2014","Пивной напиток \"BATL-X\" Истребитель 0,5л ж/б 6,9%/12"]
["Пивной напиток \"BATL-X\" Черри Джин 0,5л ж/б 6,9%/12",null,null,null,null,2,8,"Бурдин Максим","Игнатова Н В \"Статус\"","627250, Тюменская обл, Юргинский р-н, Юргинское с, Ленина ул, дом № 6, корпус а","09.07.2014","Пивной напиток \"BATL-X\" Черри Джин 0,5л ж/б 6,9%/12"]
["Энергетический напиток ТМ \"IGUANA\" Драйв (красные ягоды) 0,5л ж/б /12",null,null,null,null,2,8,"Бурдин Максим","Игнатова Н В \"Статус\"","627250, Тюменская обл, Юргинский р-н, Юргинское с, Ленина ул, дом № 6, корпус а","09.07.2014","Энергетический напиток ТМ \"IGUANA\" Драйв (красные ягоды) 0,5л ж/б /12"]
["Ключинских И.Н. Советская \"Статус\"",null,null,null,null,18,2,"Бурдин Максим","Ключинских И.Н. Советская \"Статус\"","627250, Тюменская обл, Юргинский р-н, Юргинское с, Ленина ул, дом № 6, корпус а","09.07.2014","Энергетический напиток ТМ \"IGUANA\" Драйв (красные ягоды) 0,5л ж/б /12"]
["627081, Тюменская обл, Омутинский р-н, Ситниково с, Советская ул, дом № 60",null,null,null,null,18,4,"Бурдин Максим","Ключинских И.Н. Советская \"Статус\"","627081, Тюменская обл, Омутинский р-н, Ситниково с, Советская ул, дом № 60","09.07.2014","Энергетический напиток ТМ \"IGUANA\" Драйв (красные ягоды) 0,5л ж/б /12"]
["25.07.2014",null,null,null,null,18,6,"Бурдин Максим","Ключинских И.Н. Советская \"Статус\"","627081, Тюменская обл, Омутинский р-н, Ситниково с, Советская ул, дом № 60","25.07.2014","Энергетический напиток ТМ \"IGUANA\" Драйв (красные ягоды) 0,5л ж/б /12"]
["Пивной напиток ТМ \"IGUANA\" Пьяная вишня 1,5л пэт 6,9%/6",null,null,null,null,6,8,"Бурдин Максим","Ключинских И.Н. Советская \"Статус\"","627081, Тюменская обл, Омутинский р-н, Ситниково с, Советская ул, дом № 60","25.07.2014","Пивной напиток ТМ \"IGUANA\" Пьяная вишня 1,5л пэт 6,9%/6"]
["Пивной напиток ТМ \"IGUANA\" Сочный апельсин 1,5л пэт 6,9%/6",null,null,null,null,6,8,"Бурдин Максим","Ключинских И.Н. Советская \"Статус\"","627081, Тюменская обл, Омутинский р-н, Ситниково с, Советская ул, дом № 60","25.07.2014","Пивной напиток ТМ \"IGUANA\" Сочный апельсин 1,5л пэт 6,9%/6"]
["Пивной напиток ТМ \"IGUANA\" Черный русский (Виски-кола) 1,5л пэт 6,9%/6",null,null,null,null,6,8,"Бурдин Максим","Ключинских И.Н. Советская \"Статус\"","627081, Тюменская обл, Омутинский р-н, Ситниково с, Советская ул, дом № 60","25.07.2014","Пивной напиток ТМ \"IGUANA\" Черный русский (Виски-кола) 1,5л пэт 6,9%/6"]
["ЛюксОм Островского \"Статус\" ",null,null,null,null,24,2,"Бурдин Максим","ЛюксОм Островского \"Статус\" ","627081, Тюменская обл, Омутинский р-н, Ситниково с, Советская ул, дом № 60","25.07.2014","Пивной напиток ТМ \"IGUANA\" Черный русский (Виски-кола) 1,5л пэт 6,9%/6"]
["627072, Тюменская обл, Омутинский р-н, Омутинское с, Островского ул, дом № 39",null,null,null,null,24,4,"Бурдин Максим","ЛюксОм Островского \"Статус\" ","627072, Тюменская обл, Омутинский р-н, Омутинское с, Островского ул, дом № 39","25.07.2014","Пивной напиток ТМ \"IGUANA\" Черный русский (Виски-кола) 1,5л пэт 6,9%/6"]
["04.07.2014",null,null,null,null,12,6,"Бурдин Максим","ЛюксОм Островского \"Статус\" ","627072, Тюменская обл, Омутинский р-н, Омутинское с, Островского ул, дом № 39","04.07.2014","Пивной напиток ТМ \"IGUANA\" Черный русский (Виски-кола) 1,5л пэт 6,9%/6"]
["Пивной напиток ТМ \"IGUANA\" Пряная клюква 1,5л пэт 6,9%/6",null,null,null,null,6,8,"Бурдин Максим","ЛюксОм Островского \"Статус\" ","627072, Тюменская обл, Омутинский р-н, Омутинское с, Островского ул, дом № 39","04.07.2014","Пивной напиток ТМ \"IGUANA\" Пряная клюква 1,5л пэт 6,9%/6"]
["Пивной напиток ТМ \"IGUANA\" Черный русский (Виски-кола) 1,5л пэт 6,9%/6",null,null,null,null,6,8,"Бурдин Максим","ЛюксОм Островского \"Статус\" ","627072, Тюменская обл, Омутинский р-н, Омутинское с, Островского ул, дом № 39","04.07.2014","Пивной напиток ТМ \"IGUANA\" Черный русский (Виски-кола) 1,5л пэт 6,9%/6"]
["11.07.2014",null,null,null,null,12,6,"Бурдин Максим","ЛюксОм Островского \"Статус\" ","627072, Тюменская обл, Омутинский р-н, Омутинское с, Островского ул, дом № 39","11.07.2014","Пивной напиток ТМ \"IGUANA\" Черный русский (Виски-кола) 1,5л пэт 6,9%/6"]
["Пивной напиток ТМ \"IGUANA\" Мохито (лимон, лайм, мята) 1,5л пэт 6,9%/6",null,null,null,null,6,8,"Бурдин Максим","ЛюксОм Островского \"Статус\" ","627072, Тюменская обл, Омутинский р-н, Омутинское с, Островского ул, дом № 39","11.07.2014","Пивной напиток ТМ \"IGUANA\" Мохито (лимон, лайм, мята) 1,5л пэт 6,9%/6"]
["Пивной напиток ТМ \"IGUANA\" Пряная клюква 1,5л пэт 6,9%/6",null,null,null,null,6,8,"Бурдин Максим","ЛюксОм Островского \"Статус\" ","627072, Тюменская обл, Омутинский р-н, Омутинское с, Островского ул, дом № 39","11.07.2014","Пивной напиток ТМ \"IGUANA\" Пряная клюква 1,5л пэт 6,9%/6"]
["Нико \"Статус\" Омутинское с, Герцена ул, дом № 39, корпус а",null,null,null,null,48,2,"Бурдин Максим","Нико \"Статус\" Омутинское с, Герцена ул, дом № 39, корпус а","627072, Тюменская обл, Омутинский р-н, Омутинское с, Островского ул, дом № 39","11.07.2014","Пивной напиток ТМ \"IGUANA\" Пряная клюква 1,5л пэт 6,9%/6"]
["627070, Тюменская обл, Омутинский р-н, Омутинское с, Герцена ул, дом № 39, корпус а",null,null,null,null,48,4,"Бурдин Максим","Нико \"Статус\" Омутинское с, Герцена ул, дом № 39, корпус а","627070, Тюменская обл, Омутинский р-н, Омутинское с, Герцена ул, дом № 39, корпус а","11.07.2014","Пивной напиток ТМ \"IGUANA\" Пряная клюква 1,5л пэт 6,9%/6"]
["04.07.2014",null,null,null,null,12,6,"Бурдин Максим","Нико \"Статус\" Омутинское с, Герцена ул, дом № 39, корпус а","627070, Тюменская обл, Омутинский р-н, Омутинское с, Герцена ул, дом № 39, корпус а","04.07.2014","Пивной напиток ТМ \"IGUANA\" Пряная клюква 1,5л пэт 6,9%/6"]
["Пивной напиток ТМ \"IGUANA\" Белый виноград 1,5л пэт 6,9%/6",null,null,null,null,6,8,"Бурдин Максим","Нико \"Статус\" Омутинское с, Герцена ул, дом № 39, корпус а","627070, Тюменская обл, Омутинский р-н, Омутинское с, Герцена ул, дом № 39, корпус а","04.07.2014","Пивной напиток ТМ \"IGUANA\" Белый виноград 1,5л пэт 6,9%/6"]
["Пивной напиток ТМ \"IGUANA\" Джин-тоник Розовый грейпфрут 1,5л пэт 6,9%/6",null,null,null,null,6,8,"Бурдин Максим","Нико \"Статус\" Омутинское с, Герцена ул, дом № 39, корпус а","627070, Тюменская обл, Омутинский р-н, Омутинское с, Герцена ул, дом № 39, корпус а","04.07.2014","Пивной напиток ТМ \"IGUANA\" Джин-тоник Розовый грейпфрут 1,5л пэт 6,9%/6"]
["25.07.2014",null,null,null,null,36,6,"Бурдин Максим","Нико \"Статус\" Омутинское с, Герцена ул, дом № 39, корпус а","627070, Тюменская обл, Омутинский р-н, Омутинское с, Герцена ул, дом № 39, корпус а","25.07.2014","Пивной напиток ТМ \"IGUANA\" Джин-тоник Розовый грейпфрут 1,5л пэт 6,9%/6"]
["Пивной напиток ТМ \"IGUANA\" Мохито (лимон, лайм, мята) 1,5л пэт 6,9%/6",null,null,null,null,6,8,"Бурдин Максим","Нико \"Статус\" Омутинское с, Герцена ул, дом № 39, корпус а","627070, Тюменская обл, Омутинский р-н, Омутинское с, Герцена ул, дом № 39, корпус а","25.07.2014","Пивной напиток ТМ \"IGUANA\" Мохито (лимон, лайм, мята) 1,5л пэт 6,9%/6"]
["Пивной напиток ТМ \"IGUANA\" Пряная клюква 1,5л пэт 6,9%/6",null,null,null,null,6,8,"Бурдин Максим","Нико \"Статус\" Омутинское с, Герцена ул, дом № 39, корпус а","627070, Тюменская обл, Омутинский р-н, Омутинское с, Герцена ул, дом № 39, корпус а","25.07.2014","Пивной напиток ТМ \"IGUANA\" Пряная клюква 1,5л пэт 6,9%/6"]
["Пивной напиток ТМ \"IGUANA\" Пьяная вишня 1,5л пэт 6,9%/6",null,null,null,null,6,8,"Бурдин Максим","Нико \"Статус\" Омутинское с, Герцена ул, дом № 39, корпус а","627070, Тюменская обл, Омутинский р-н, Омутинское с, Герцена ул, дом № 39, корпус а","25.07.2014","Пивной напиток ТМ \"IGUANA\" Пьяная вишня 1,5л пэт 6,9%/6"]
["Пивной напиток ТМ \"IGUANA\" Сочный апельсин 1,5л пэт 6,9%/6",null,null,null,null,6,8,"Бурдин Максим","Нико \"Статус\" Омутинское с, Герцена ул, дом № 39, корпус а","627070, Тюменская обл, Омутинский р-н, Омутинское с, Герцена ул, дом № 39, корпус а","25.07.2014","Пивной напиток ТМ \"IGUANA\" Сочный апельсин 1,5л пэт 6,9%/6"]
["Пивной напиток ТМ \"IGUANA\" Черный русский (Амаретто) 1,5л пэт 6,9%/6",null,null,null,null,6,8,"Бурдин Максим","Нико \"Статус\" Омутинское с, Герцена ул, дом № 39, корпус а","627070, Тюменская обл, Омутинский р-н, Омутинское с, Герцена ул, дом № 39, корпус а","25.07.2014","Пивной напиток ТМ \"IGUANA\" Черный русский (Амаретто) 1,5л пэт 6,9%/6"]
["Пивной напиток ТМ \"IGUANA\" Черный русский (Виски-кола) 1,5л пэт 6,9%/6",null,null,null,null,6,8,"Бурдин Максим","Нико \"Статус\" Омутинское с, Герцена ул, дом № 39, корпус а","627070, Тюменская обл, Омутинский р-н, Омутинское с, Герцена ул, дом № 39, корпус а","25.07.2014","Пивной напиток ТМ \"IGUANA\" Черный русский (Виски-кола) 1,5л пэт 6,9%/6"]
["ПО Красноярское Октябрьская \"Статус\"",null,null,null,null,12,2,"Бурдин Максим","ПО Красноярское Октябрьская \"Статус\"","627070, Тюменская обл, Омутинский р-н, Омутинское с, Герцена ул, дом № 39, корпус а","25.07.2014","Пивной напиток ТМ \"IGUANA\" Черный русский (Виски-кола) 1,5л пэт 6,9%/6"]
["627070, Тюменская обл, Омутинский р-н, Омутинское с, Октябрьская ул, дом № 6",null,null,null,null,12,4,"Бурдин Максим","ПО Красноярское Октябрьская \"Статус\"","627070, Тюменская обл, Омутинский р-н, Омутинское с, Октябрьская ул, дом № 6","25.07.2014","Пивной напиток ТМ \"IGUANA\" Черный русский (Виски-кола) 1,5л пэт 6,9%/6"]
["04.07.2014",null,null,null,null,12,6,"Бурдин Максим","ПО Красноярское Октябрьская \"Статус\"","627070, Тюменская обл, Омутинский р-н, Омутинское с, Октябрьская ул, дом № 6","04.07.2014","Пивной напиток ТМ \"IGUANA\" Черный русский (Виски-кола) 1,5л пэт 6,9%/6"]
["Пивной напиток ТМ \"IGUANA\" Гранат 1,5л пэт 6,9%/6",null,null,null,null,6,8,"Бурдин Максим","ПО Красноярское Октябрьская \"Статус\"","627070, Тюменская обл, Омутинский р-н, Омутинское с, Октябрьская ул, дом № 6","04.07.2014","Пивной напиток ТМ \"IGUANA\" Гранат 1,5л пэт 6,9%/6"]
["Пивной напиток ТМ \"IGUANA\" Пьяная вишня 1,5л пэт 6,9%/6",null,null,null,null,6,8,"Бурдин Максим","ПО Красноярское Октябрьская \"Статус\"","627070, Тюменская обл, Омутинский р-н, Омутинское с, Октябрьская ул, дом № 6","04.07.2014","Пивной напиток ТМ \"IGUANA\" Пьяная вишня 1,5л пэт 6,9%/6"]
["Поршнев А.А. Пролетарская \"Статус\"",null,null,null,null,6,2,"Бурдин Максим","Поршнев А.А. Пролетарская \"Статус\"","627070, Тюменская обл, Омутинский р-н, Омутинское с, Октябрьская ул, дом № 6","04.07.2014","Пивной напиток ТМ \"IGUANA\" Пьяная вишня 1,5л пэт 6,9%/6"]
["627060, Тюменская обл, Омутинский р-н, Вагай с, Пролетарская ул, дом № 72а",null,null,null,null,6,4,"Бурдин Максим","Поршнев А.А. Пролетарская \"Статус\"","627060, Тюменская обл, Омутинский р-н, Вагай с, Пролетарская ул, дом № 72а","04.07.2014","Пивной напиток ТМ \"IGUANA\" Пьяная вишня 1,5л пэт 6,9%/6"]
["11.07.2014",null,null,null,null,6,6,"Бурдин Максим","Поршнев А.А. Пролетарская \"Статус\"","627060, Тюменская обл, Омутинский р-н, Вагай с, Пролетарская ул, дом № 72а","11.07.2014","Пивной напиток ТМ \"IGUANA\" Пьяная вишня 1,5л пэт 6,9%/6"]
["Пивной напиток ТМ \"IGUANA\" Джин-тоник 1,5л пэт 6,9%/6",null,null,null,null,6,8,"Бурдин Максим","Поршнев А.А. Пролетарская \"Статус\"","627060, Тюменская обл, Омутинский р-н, Вагай с, Пролетарская ул, дом № 72а","11.07.2014","Пивной напиток ТМ \"IGUANA\" Джин-тоник 1,5л пэт 6,9%/6"]
["Трио Терешковой \"Статус\"",null,null,null,null,6,{"$f":"otst($A71)","v":2},{"$f":"IF($G71=H$5,$A71,H70)","v":"Бурдин Максим"},{"$f":"IF($G71=I$5,$A71,I70)","v":"Трио Терешковой \"Статус\""},{"$f":"IF($G71=J$5,$A71,J70)","v":"627060, Тюменская обл, Омутинский р-н, Вагай с, Пролетарская ул, дом № 72а"},{"$f":"IF($G71=K$5,$A71,K70)","v":"11.07.2014"},{"$f":"IF($G71=L$5,$A71,L70)","v":"Пивной напиток ТМ \"IGUANA\" Джин-тоник 1,5л пэт 6,9%/6"}]
["627070, Тюменская обл, Омутинский р-н, Омутинское с, Терешковой ул, дом № 13а",null,null,null,null,6,4,"Бурдин Максим","Трио Терешковой \"Статус\"","627070, Тюменская обл, Омутинский р-н, Омутинское с, Терешковой ул, дом № 13а","11.07.2014","Пивной напиток ТМ \"IGUANA\" Джин-тоник 1,5л пэт 6,9%/6"]
["25.07.2014",null,null,null,null,6,6,"Бурдин Максим","Трио Терешковой \"Статус\"","627070, Тюменская обл, Омутинский р-н, Омутинское с, Терешковой ул, дом № 13а","25.07.2014","Пивной напиток ТМ \"IGUANA\" Джин-тоник 1,5л пэт 6,9%/6"]
["Пивной напиток ТМ \"IGUANA\" Белый виноград 1,5л пэт 6,9%/6",null,null,null,null,6,8,"Бурдин Максим","Трио Терешковой \"Статус\"","627070, Тюменская обл, Омутинский р-н, Омутинское с, Терешковой ул, дом № 13а","25.07.2014","Пивной напиток ТМ \"IGUANA\" Белый виноград 1,5л пэт 6,9%/6"]
["Трио Шоссейная \"Статус\"",null,null,null,null,6,2,"Бурдин Максим","Трио Шоссейная \"Статус\"","627070, Тюменская обл, Омутинский р-н, Омутинское с, Терешковой ул, дом № 13а","25.07.2014","Пивной напиток ТМ \"IGUANA\" Белый виноград 1,5л пэт 6,9%/6"]
["627070, Тюменская обл, Омутинский р-н, Омутинское с, Шоссейная ул, дом № 10",null,null,null,null,6,4,"Бурдин Максим","Трио Шоссейная \"Статус\"","627070, Тюменская обл, Омутинский р-н, Омутинское с, Шоссейная ул, дом № 10","25.07.2014","Пивной напиток ТМ \"IGUANA\" Белый виноград 1,5л пэт 6,9%/6"]
["04.07.2014",null,null,null,null,6,6,"Бурдин Максим","Трио Шоссейная \"Статус\"","627070, Тюменская обл, Омутинский р-н, Омутинское с, Шоссейная ул, дом № 10","04.07.2014","Пивной напиток ТМ \"IGUANA\" Белый виноград 1,5л пэт 6,9%/6"]
["Пивной напиток \"BATL-X\" Блэк Джек 0,5л ж/б 6,9%/12",null,null,null,null,2,8,"Бурдин Максим","Трио Шоссейная \"Статус\"","627070, Тюменская обл, Омутинский р-н, Омутинское с, Шоссейная ул, дом № 10","04.07.2014","Пивной напиток \"BATL-X\" Блэк Джек 0,5л ж/б 6,9%/12"]
["Пивной напиток \"BATL-X\" Истребитель 0,5л ж/б 6,9%/12",null,null,null,null,2,8,"Бурдин Максим","Трио Шоссейная \"Статус\"","627070, Тюменская обл, Омутинский р-н, Омутинское с, Шоссейная ул, дом № 10","04.07.2014","Пивной напиток \"BATL-X\" Истребитель 0,5л ж/б 6,9%/12"]
["Пивной напиток \"BATL-X\" Мятный Джин 0,5л ж/б 6,9%/12",null,null,null,null,2,8,"Бурдин Максим","Трио Шоссейная \"Статус\"","627070, Тюменская обл, Омутинский р-н, Омутинское с, Шоссейная ул, дом № 10","04.07.2014","Пивной напиток \"BATL-X\" Мятный Джин 0,5л ж/б 6,9%/12"]
["Воронов Дмитрий",null,null,null,null,180,0,"Воронов Дмитрий","Трио Шоссейная \"Статус\"","627070, Тюменская обл, Омутинский р-н, Омутинское с, Шоссейная ул, дом № 10","04.07.2014","Пивной напиток \"BATL-X\" Мятный Джин 0,5л ж/б 6,9%/12"]
["Бертрам В В \"Статус\"",null,null,null,null,12,2,"Воронов Дмитрий","Бертрам В В \"Статус\"","627070, Тюменская обл, Омутинский р-н, Омутинское с, Шоссейная ул, дом № 10","04.07.2014","Пивной напиток \"BATL-X\" Мятный Джин 0,5л ж/б 6,9%/12"]
["627144, Тюменская обл, Заводоуковский р-н, Заводоуковск г, Совхозная ул, дом № 138",null,null,null,null,12,4,"Воронов Дмитрий","Бертрам В В \"Статус\"","627144, Тюменская обл, Заводоуковский р-н, Заводоуковск г, Совхозная ул, дом № 138","04.07.2014","Пивной напиток \"BATL-X\" Мятный Джин 0,5л ж/б 6,9%/12"]
["11.07.2014",null,null,null,null,12,6,"Воронов Дмитрий","Бертрам В В \"Статус\"","627144, Тюменская обл, Заводоуковский р-н, Заводоуковск г, Совхозная ул, дом № 138","11.07.2014","Пивной напиток \"BATL-X\" Мятный Джин 0,5л ж/б 6,9%/12"]
["Пивной напиток ТМ \"IGUANA\" Ароматный лимон 0,5л пэт 6,9%/12",null,null,null,null,6,8,"Воронов Дмитрий","Бертрам В В \"Статус\"","627144, Тюменская обл, Заводоуковский р-н, Заводоуковск г, Совхозная ул, дом № 138","11.07.2014","Пивной напиток ТМ \"IGUANA\" Ароматный лимон 0,5л пэт 6,9%/12"]
["Пивной напиток ТМ \"IGUANA\" Пьяная вишня 0,5л пэт 6,9%/12",null,null,null,null,6,8,"Воронов Дмитрий","Бертрам В В \"Статус\"","627144, Тюменская обл, Заводоуковский р-н, Заводоуковск г, Совхозная ул, дом № 138","11.07.2014","Пивной напиток ТМ \"IGUANA\" Пьяная вишня 0,5л пэт 6,9%/12"]
["Вега Исетское",null,null,null,null,12,2,"Воронов Дмитрий","Вега Исетское","627144, Тюменская обл, Заводоуковский р-н, Заводоуковск г, Совхозная ул, дом № 138","11.07.2014","Пивной напиток ТМ \"IGUANA\" Пьяная вишня 0,5л пэт 6,9%/12"]
["626383, Тюменская обл, Исетский р-н, Бархатово с, Юбилейная ул, дом № 11",null,null,null,null,12,4,"Воронов Дмитрий","Вега Исетское","626383, Тюменская обл, Исетский р-н, Бархатово с, Юбилейная ул, дом № 11","11.07.2014","Пивной напиток ТМ \"IGUANA\" Пьяная вишня 0,5л пэт 6,9%/12"]
["03.07.2014",null,null,null,null,12,6,"Воронов Дмитрий","Вега Исетское","626383, Тюменская обл, Исетский р-н, Бархатово с, Юбилейная ул, дом № 11","03.07.2014","Пивной напиток ТМ \"IGUANA\" Пьяная вишня 0,5л пэт 6,9%/12"]
["Пивной напиток \"BATL-X\" Блэк Джек 0,5л ж/б 6,9%/12",null,null,null,null,4,8,"Воронов Дмитрий","Вега Исетское","626383, Тюменская обл, Исетский р-н, Бархатово с, Юбилейная ул, дом № 11","03.07.2014","Пивной напиток \"BATL-X\" Блэк Джек 0,5л ж/б 6,9%/12"]
["Пивной напиток \"BATL-X\" Истребитель 0,5л ж/б 6,9%/12",null,null,null,null,4,8,"Воронов Дмитрий","Вега Исетское","626383, Тюменская обл, Исетский р-н, Бархатово с, Юбилейная ул, дом № 11","03.07.2014","Пивной напиток \"BATL-X\" Истребитель 0,5л ж/б 6,9%/12"]
["Пивной напиток \"BATL-X\" Мятный Джин 0,5л ж/б 6,9%/12",null,null,null,null,4,8,"Воронов Дмитрий","Вега Исетское","626383, Тюменская обл, Исетский р-н, Бархатово с, Юбилейная ул, дом № 11","03.07.2014","Пивной напиток \"BATL-X\" Мятный Джин 0,5л ж/б 6,9%/12"]
["Иванов С А \"Статус\"  Бигила с, Советская ул, дом № 2",null,null,null,null,6,2,"Воронов Дмитрий","Иванов С А \"Статус\"  Бигила с, Советская ул, дом № 2","626383, Тюменская обл, Исетский р-н, Бархатово с, Юбилейная ул, дом № 11","03.07.2014","Пивной напиток \"BATL-X\" Мятный Джин 0,5л ж/б 6,9%/12"]
["627103, Тюменская обл, Заводоуковский р-н, Бигила с, Советская ул, дом № 2",null,null,null,null,6,4,"Воронов Дмитрий","Иванов С А \"Статус\"  Бигила с, Советская ул, дом № 2","627103, Тюменская обл, Заводоуковский р-н, Бигила с, Советская ул, дом № 2","03.07.2014","Пивной напиток \"BATL-X\" Мятный Джин 0,5л ж/б 6,9%/12"]
["21.07.2014",null,null,null,null,6,6,"Воронов Дмитрий","Иванов С А \"Статус\"  Бигила с, Советская ул, дом № 2","627103, Тюменская обл, Заводоуковский р-н, Бигила с, Советская ул, дом № 2","21.07.2014","Пивной напиток \"BATL-X\" Мятный Джин 0,5л ж/б 6,9%/12"]
["Пивной напиток ТМ \"IGUANA\" Джин-тоник 1,5л пэт 6,9%/6",null,null,null,null,6,8,"Воронов Дмитрий","Иванов С А \"Статус\"  Бигила с, Советская ул, дом № 2","627103, Тюменская обл, Заводоуковский р-н, Бигила с, Советская ул, дом № 2","21.07.2014","Пивной напиток ТМ \"IGUANA\" Джин-тоник 1,5л пэт 6,9%/6"]
["Иванов С А \"Статус\" Горюново с, Октябрьская ул, дом № 29*",null,null,null,null,6,2,"Воронов Дмитрий","Иванов С А \"Статус\" Горюново с, Октябрьская ул, дом № 29*","627103, Тюменская обл, Заводоуковский р-н, Бигила с, Советская ул, дом № 2","21.07.2014","Пивной напиток ТМ \"IGUANA\" Джин-тоник 1,5л пэт 6,9%/6"]
["627101, Тюменская обл, Заводоуковский р-н, Горюново с, Октябрьская ул, дом № 29*",null,null,null,null,6,4,"Воронов Дмитрий","Иванов С А \"Статус\" Горюново с, Октябрьская ул, дом № 29*","627101, Тюменская обл, Заводоуковский р-н, Горюново с, Октябрьская ул, дом № 29*","21.07.2014","Пивной напиток ТМ \"IGUANA\" Джин-тоник 1,5л пэт 6,9%/6"]
["21.07.2014",null,null,null,null,6,6,"Воронов Дмитрий","Иванов С А \"Статус\" Горюново с, Октябрьская ул, дом № 29*","627101, Тюменская обл, Заводоуковский р-н, Горюново с, Октябрьская ул, дом № 29*","21.07.2014","Пивной напиток ТМ \"IGUANA\" Джин-тоник 1,5л пэт 6,9%/6"]
["Пивной напиток ТМ \"IGUANA\" Джин-тоник 1,5л пэт 6,9%/6",null,null,null,null,6,8,"Воронов Дмитрий","Иванов С А \"Статус\" Горюново с, Октябрьская ул, дом № 29*","627101, Тюменская обл, Заводоуковский р-н, Горюново с, Октябрьская ул, дом № 29*","21.07.2014","Пивной напиток ТМ \"IGUANA\" Джин-тоник 1,5л пэт 6,9%/6"]
["Исетское райпо Коммунар \"Статус\"",null,null,null,null,12,2,"Воронов Дмитрий","Исетское райпо Коммунар \"Статус\"","627101, Тюменская обл, Заводоуковский р-н, Горюново с, Октябрьская ул, дом № 29*","21.07.2014","Пивной напиток ТМ \"IGUANA\" Джин-тоник 1,5л пэт 6,9%/6"]
["626391, Тюменская обл, Исетский р-н, Коммунар п, Ленина ул, дом № 38/1",null,null,null,null,12,4,"Воронов Дмитрий","Исетское райпо Коммунар \"Статус\"","626391, Тюменская обл, Исетский р-н, Коммунар п, Ленина ул, дом № 38/1","21.07.2014","Пивной напиток ТМ \"IGUANA\" Джин-тоник 1,5л пэт 6,9%/6"]
["03.07.2014",null,null,null,null,12,6,"Воронов Дмитрий","Исетское райпо Коммунар \"Статус\"","626391, Тюменская обл, Исетский р-н, Коммунар п, Ленина ул, дом № 38/1","03.07.2014","Пивной напиток ТМ \"IGUANA\" Джин-тоник 1,5л пэт 6,9%/6"]
["Пивной напиток \"BATL-X\" Блэк Джек 0,5л ж/б 6,9%/12",null,null,null,null,4,8,"Воронов Дмитрий","Исетское райпо Коммунар \"Статус\"","626391, Тюменская обл, Исетский р-н, Коммунар п, Ленина ул, дом № 38/1","03.07.2014","Пивной напиток \"BATL-X\" Блэк Джек 0,5л ж/б 6,9%/12"]
["Пивной напиток \"BATL-X\" Истребитель 0,5л ж/б 6,9%/12",null,null,null,null,4,8,"Воронов Дмитрий","Исетское райпо Коммунар \"Статус\"","626391, Тюменская обл, Исетский р-н, Коммунар п, Ленина ул, дом № 38/1","03.07.2014","Пивной напиток \"BATL-X\" Истребитель 0,5л ж/б 6,9%/12"]
["Пивной напиток \"BATL-X\" Мятный Джин 0,5л ж/б 6,9%/12",null,null,null,null,4,8,"Воронов Дмитрий","Исетское райпо Коммунар \"Статус\"","626391, Тюменская обл, Исетский р-н, Коммунар п, Ленина ул, дом № 38/1","03.07.2014","Пивной напиток \"BATL-X\" Мятный Джин 0,5л ж/б 6,9%/12"]
["Ковалев Н.И. Коммунар \"Статус\"",null,null,null,null,18,2,"Воронов Дмитрий","Ковалев Н.И. Коммунар \"Статус\"","626391, Тюменская обл, Исетский р-н, Коммунар п, Ленина ул, дом № 38/1","03.07.2014","Пивной напиток \"BATL-X\" Мятный Джин 0,5л ж/б 6,9%/12"]
["626391, Тюменская обл, Исетский р-н, Коммунар п, Ленина ул, дом № 17",null,null,null,null,18,4,"Воронов Дмитрий","Ковалев Н.И. Коммунар \"Статус\"","626391, Тюменская обл, Исетский р-н, Коммунар п, Ленина ул, дом № 17","03.07.2014","Пивной напиток \"BATL-X\" Мятный Джин 0,5л ж/б 6,9%/12"]
["17.07.2014",null,null,null,null,18,6,"Воронов Дмитрий","Ковалев Н.И. Коммунар \"Статус\"","626391, Тюменская обл, Исетский р-н, Коммунар п, Ленина ул, дом № 17","17.07.2014","Пивной напиток \"BATL-X\" Мятный Джин 0,5л ж/б 6,9%/12"]
["Пивной напиток ТМ \"IGUANA\" Белый виноград 1,5л пэт 6,9%/6",null,null,null,null,6,8,"Воронов Дмитрий","Ковалев Н.И. Коммунар \"Статус\"","626391, Тюменская обл, Исетский р-н, Коммунар п, Ленина ул, дом № 17","17.07.2014","Пивной напиток ТМ \"IGUANA\" Белый виноград 1,5л пэт 6,9%/6"]
["Пивной напиток ТМ \"IGUANA\" Дайкири Тропик (апел. марак. персик) 1,5л пэт 6,9%/6",null,null,null,null,6,8,"Воронов Дмитрий","Ковалев Н.И. Коммунар \"Статус\"","626391, Тюменская обл, Исетский р-н, Коммунар п, Ленина ул, дом № 17","17.07.2014","Пивной напиток ТМ \"IGUANA\" Дайкири Тропик (апел. марак. персик) 1,5л пэт 6,9%/6"]
["Пивной напиток ТМ \"IGUANA\" Джин-тоник 1,5л пэт 6,9%/6",null,null,null,null,6,8,"Воронов Дмитрий","Ковалев Н.И. Коммунар \"Статус\"","626391, Тюменская обл, Исетский р-н, Коммунар п, Ленина ул, дом № 17","17.07.2014","Пивной напиток ТМ \"IGUANA\" Джин-тоник 1,5л пэт 6,9%/6"]
["Колычева Н Н \"Статус\"",null,null,null,null,36,2,"Воронов Дмитрий","Колычева Н Н \"Статус\"","626391, Тюменская обл, Исетский р-н, Коммунар п, Ленина ул, дом № 17","17.07.2014","Пивной напиток ТМ \"IGUANA\" Джин-тоник 1,5л пэт 6,9%/6"]
["627105, Тюменская обл, Заводоуковский р-н, Семеново с, Центральная ул, дом № 1",null,null,null,null,36,4,"Воронов Дмитрий","Колычева Н Н \"Статус\"","627105, Тюменская обл, Заводоуковский р-н, Семеново с, Центральная ул, дом № 1","17.07.2014","Пивной напиток ТМ \"IGUANA\" Джин-тоник 1,5л пэт 6,9%/6"]
["03.07.2014",null,null,null,null,18,6,"Воронов Дмитрий","Колычева Н Н \"Статус\"","627105, Тюменская обл, Заводоуковский р-н, Семеново с, Центральная ул, дом № 1","03.07.2014","Пивной напиток ТМ \"IGUANA\" Джин-тоник 1,5л пэт 6,9%/6"]
["Пивной напиток ТМ \"IGUANA\" Джин-тоник 1,5л пэт 6,9%/6",null,null,null,null,12,8,"Воронов Дмитрий","Колычева Н Н \"Статус\"","627105, Тюменская обл, Заводоуковский р-н, Семеново с, Центральная ул, дом № 1","03.07.2014","Пивной напиток ТМ \"IGUANA\" Джин-тоник 1,5л пэт 6,9%/6"]
["Пивной напиток ТМ \"IGUANA\" Пряная клюква 1,5л пэт 6,9%/6",null,null,null,null,6,8,"Воронов Дмитрий","Колычева Н Н \"Статус\"","627105, Тюменская обл, Заводоуковский р-н, Семеново с, Центральная ул, дом № 1","03.07.2014","Пивной напиток ТМ \"IGUANA\" Пряная клюква 1,5л пэт 6,9%/6"]
["08.07.2014",null,null,null,null,18,6,"Воронов Дмитрий","Колычева Н Н \"Статус\"","627105, Тюменская обл, Заводоуковский р-н, Семеново с, Центральная ул, дом № 1","08.07.2014","Пивной напиток ТМ \"IGUANA\" Пряная клюква 1,5л пэт 6,9%/6"]
["Пивной напиток ТМ \"IGUANA\" Джин-тоник 1,5л пэт 6,9%/6",null,null,null,null,18,8,"Воронов Дмитрий","Колычева Н Н \"Статус\"","627105, Тюменская обл, Заводоуковский р-н, Семеново с, Центральная ул, дом № 1","08.07.2014","Пивной напиток ТМ \"IGUANA\" Джин-тоник 1,5л пэт 6,9%/6"]
["Коновалова Н А \"Статус\"",null,null,null,null,12,2,"Воронов Дмитрий","Коновалова Н А \"Статус\"","627105, Тюменская обл, Заводоуковский р-н, Семеново с, Центральная ул, дом № 1","08.07.2014","Пивной напиток ТМ \"IGUANA\" Джин-тоник 1,5л пэт 6,9%/6"]
["627140, Тюменская обл, Заводоуковский р-н, Заводоуковск г, Мостовая ул, дом № 13, кв. 1",null,null,null,null,12,4,"Воронов Дмитрий","Коновалова Н А \"Статус\"","627140, Тюменская обл, Заводоуковский р-н, Заводоуковск г, Мостовая ул, дом № 13, кв. 1","08.07.2014","Пивной напиток ТМ \"IGUANA\" Джин-тоник 1,5л пэт 6,9%/6"]
["18.07.2014",null,null,null,null,12,6,"Воронов Дмитрий","Коновалова Н А \"Статус\"","627140, Тюменская обл, Заводоуковский р-н, Заводоуковск г, Мостовая ул, дом № 13, кв. 1","18.07.2014","Пивной напиток ТМ \"IGUANA\" Джин-тоник 1,5л пэт 6,9%/6"]
["Пивной напиток \"BATL-X\" Мятный Джин 0,5л ж/б 6,9%/12",null,null,null,null,6,8,"Воронов Дмитрий","Коновалова Н А \"Статус\"","627140, Тюменская обл, Заводоуковский р-н, Заводоуковск г, Мостовая ул, дом № 13, кв. 1","18.07.2014","Пивной напиток \"BATL-X\" Мятный Джин 0,5л ж/б 6,9%/12"]
["Энергетический напиток ТМ \"IGUANA\" Тропикана (апельсин, маракуйя) 0,5л ж/б /12",null,null,null,null,6,8,"Воронов Дмитрий","Коновалова Н А \"Статус\"","627140, Тюменская обл, Заводоуковский р-н, Заводоуковск г, Мостовая ул, дом № 13, кв. 1","18.07.2014","Энергетический напиток ТМ \"IGUANA\" Тропикана (апельсин, маракуйя) 0,5л ж/б /12"]
["Лидер \"Статус\" Энергетиков ",null,null,null,null,12,2,"Воронов Дмитрий","Лидер \"Статус\" Энергетиков ","627140, Тюменская обл, Заводоуковский р-н, Заводоуковск г, Мостовая ул, дом № 13, кв. 1","18.07.2014","Энергетический напиток ТМ \"IGUANA\" Тропикана (апельсин, маракуйя) 0,5л ж/б /12"]
["627144, Тюменская обл, Заводоуковский р-н, Заводоуковск г, Энергетиков ул, дом № 41",null,null,null,null,12,4,"Воронов Дмитрий","Лидер \"Статус\" Энергетиков ","627144, Тюменская обл, Заводоуковский р-н, Заводоуковск г, Энергетиков ул, дом № 41","18.07.2014","Энергетический напиток ТМ \"IGUANA\" Тропикана (апельсин, маракуйя) 0,5л ж/б /12"]
["18.07.2014",null,null,null,null,12,6,"Воронов Дмитрий","Лидер \"Статус\" Энергетиков ","627144, Тюменская обл, Заводоуковский р-н, Заводоуковск г, Энергетиков ул, дом № 41","18.07.2014","Энергетический напиток ТМ \"IGUANA\" Тропикана (апельсин, маракуйя) 0,5л ж/б /12"]
["Пивной напиток \"BATL-X\" Черри Джин 0,5л ж/б 6,9%/12",null,null,null,null,6,8,"Воронов Дмитрий","Лидер \"Статус\" Энергетиков ","627144, Тюменская обл, Заводоуковский р-н, Заводоуковск г, Энергетиков ул, дом № 41","18.07.2014","Пивной напиток \"BATL-X\" Черри Джин 0,5л ж/б 6,9%/12"]
["Энергетический напиток ТМ \"IGUANA\" Тропикана (апельсин, маракуйя) 0,5л ж/б /12",null,null,null,null,6,8,"Воронов Дмитрий","Лидер \"Статус\" Энергетиков ","627144, Тюменская обл, Заводоуковский р-н, Заводоуковск г, Энергетиков ул, дом № 41","18.07.2014","Энергетический напиток ТМ \"IGUANA\" Тропикана (апельсин, маракуйя) 0,5л ж/б /12"]
["Николаева Е А \"Статус\"",null,null,null,null,12,2,"Воронов Дмитрий","Николаева Е А \"Статус\"","627144, Тюменская обл, Заводоуковский р-н, Заводоуковск г, Энергетиков ул, дом № 41","18.07.2014","Энергетический напиток ТМ \"IGUANA\" Тропикана (апельсин, маракуйя) 0,5л ж/б /12"]
["627141, Тюменская обл, Заводоуковский р-н, Заводоуковск г, Хахина ул, дом № 26",null,null,null,null,12,4,"Воронов Дмитрий","Николаева Е А \"Статус\"","627141, Тюменская обл, Заводоуковский р-н, Заводоуковск г, Хахина ул, дом № 26","18.07.2014","Энергетический напиток ТМ \"IGUANA\" Тропикана (апельсин, маракуйя) 0,5л ж/б /12"]
["18.07.2014",null,null,null,null,12,6,"Воронов Дмитрий","Николаева Е А \"Статус\"","627141, Тюменская обл, Заводоуковский р-н, Заводоуковск г, Хахина ул, дом № 26","18.07.2014","Энергетический напиток ТМ \"IGUANA\" Тропикана (апельсин, маракуйя) 0,5л ж/б /12"]
["Пивной напиток ТМ \"IGUANA\" Ароматный лимон 1,5л пэт 6,9%/6",null,null,null,null,6,8,"Воронов Дмитрий","Николаева Е А \"Статус\"","627141, Тюменская обл, Заводоуковский р-н, Заводоуковск г, Хахина ул, дом № 26","18.07.2014","Пивной напиток ТМ \"IGUANA\" Ароматный лимон 1,5л пэт 6,9%/6"]
["Пивной напиток ТМ \"IGUANA\" Джин-тоник 1,5л пэт 6,9%/6",null,null,null,null,6,8,"Воронов Дмитрий","Николаева Е А \"Статус\"","627141, Тюменская обл, Заводоуковский р-н, Заводоуковск г, Хахина ул, дом № 26","18.07.2014","Пивной напиток ТМ \"IGUANA\" Джин-тоник 1,5л пэт 6,9%/6"]
["Общественное питание  Первомайская \"Статус\"",null,null,null,null,12,{"$f":"otst($A135)","v":2},{"$f":"IF($G135=H$5,$A135,H134)","v":"Воронов Дмитрий"},{"$f":"IF($G135=I$5,$A135,I134)","v":"Общественное питание  Первомайская \"Статус\""},{"$f":"IF($G135=J$5,$A135,J134)","v":"627141, Тюменская обл, Заводоуковский р-н, Заводоуковск г, Хахина ул, дом № 26"},{"$f":"IF($G135=K$5,$A135,K134)","v":"18.07.2014"},{"$f":"IF($G135=L$5,$A135,L134)","v":"Пивной напиток ТМ \"IGUANA\" Джин-тоник 1,5л пэт 6,9%/6"}]
["627140, Тюменская обл, Заводоуковский р-н, Заводоуковск г, Первомайская ул, дом № 9",null,null,null,null,12,4,"Воронов Дмитрий","Общественное питание  Первомайская \"Статус\"","627140, Тюменская обл, Заводоуковский р-н, Заводоуковск г, Первомайская ул, дом № 9","18.07.2014","Пивной напиток ТМ \"IGUANA\" Джин-тоник 1,5л пэт 6,9%/6"]
["18.07.2014",null,null,null,null,12,6,"Воронов Дмитрий","Общественное питание  Первомайская \"Статус\"","627140, Тюменская обл, Заводоуковский р-н, Заводоуковск г, Первомайская ул, дом № 9","18.07.2014","Пивной напиток ТМ \"IGUANA\" Джин-тоник 1,5л пэт 6,9%/6"]
["Энергетический напиток ТМ \"IGUANA\" Драйв (красные ягоды) 0,5л ж/б /12",null,null,null,null,6,8,"Воронов Дмитрий","Общественное питание  Первомайская \"Статус\"","627140, Тюменская обл, Заводоуковский р-н, Заводоуковск г, Первомайская ул, дом № 9","18.07.2014","Энергетический напиток ТМ \"IGUANA\" Драйв (красные ягоды) 0,5л ж/б /12"]
["Энергетический напиток ТМ \"IGUANA\" Тропикана (апельсин, маракуйя) 0,5л ж/б /12",null,null,null,null,6,8,"Воронов Дмитрий","Общественное питание  Первомайская \"Статус\"","627140, Тюменская обл, Заводоуковский р-н, Заводоуковск г, Первомайская ул, дом № 9","18.07.2014","Энергетический напиток ТМ \"IGUANA\" Тропикана (апельсин, маракуйя) 0,5л ж/б /12"]
["Суханова О.А. \"Статус\"",null,null,null,null,18,2,"Воронов Дмитрий","Суханова О.А. \"Статус\"","627140, Тюменская обл, Заводоуковский р-н, Заводоуковск г, Первомайская ул, дом № 9","18.07.2014","Энергетический напиток ТМ \"IGUANA\" Тропикана (апельсин, маракуйя) 0,5л ж/б /12"]
["626396, Тюменская обл, Исетский р-н, Солобоево с, Первомайская ул, дом № 1",null,null,null,null,18,4,"Воронов Дмитрий","Суханова О.А. \"Статус\"","626396, Тюменская обл, Исетский р-н, Солобоево с, Первомайская ул, дом № 1","18.07.2014","Энергетический напиток ТМ \"IGUANA\" Тропикана (апельсин, маракуйя) 0,5л ж/б /12"]
["03.07.2014",null,null,null,null,18,6,"Воронов Дмитрий","Суханова О.А. \"Статус\"","626396, Тюменская обл, Исетский р-н, Солобоево с, Первомайская ул, дом № 1","03.07.2014","Энергетический напиток ТМ \"IGUANA\" Тропикана (апельсин, маракуйя) 0,5л ж/б /12"]
["Пивной напиток ТМ \"IGUANA\" Белый виноград 1,5л пэт 6,9%/6",null,null,null,null,6,8,"Воронов Дмитрий","Суханова О.А. \"Статус\"","626396, Тюменская обл, Исетский р-н, Солобоево с, Первомайская ул, дом № 1","03.07.2014","Пивной напиток ТМ \"IGUANA\" Белый виноград 1,5л пэт 6,9%/6"]
["Пивной напиток ТМ \"IGUANA\" Пьяная вишня 1,5л пэт 6,9%/6",null,null,null,null,6,8,"Воронов Дмитрий","Суханова О.А. \"Статус\"","626396, Тюменская обл, Исетский р-н, Солобоево с, Первомайская ул, дом № 1","03.07.2014","Пивной напиток ТМ \"IGUANA\" Пьяная вишня 1,5л пэт 6,9%/6"]
["Пивной напиток ТМ \"IGUANA\" Черный русский (Амаретто) 1,5л пэт 6,9%/6",null,null,null,null,6,8,"Воронов Дмитрий","Суханова О.А. \"Статус\"","626396, Тюменская обл, Исетский р-н, Солобоево с, Первомайская ул, дом № 1","03.07.2014","Пивной напиток ТМ \"IGUANA\" Черный русский (Амаретто) 1,5л пэт 6,9%/6"]
["Форсаж \"Статус\" Энергетиков ",null,null,null,null,12,2,"Воронов Дмитрий","Форсаж \"Статус\" Энергетиков ","626396, Тюменская обл, Исетский р-н, Солобоево с, Первомайская ул, дом № 1","03.07.2014","Пивной напиток ТМ \"IGUANA\" Черный русский (Амаретто) 1,5л пэт 6,9%/6"]
["627144, Тюменская обл, Заводоуковский р-н, Заводоуковск г, Энергетиков ул, дом № 43, корпус б",null,null,null,null,12,4,"Воронов Дмитрий","Форсаж \"Статус\" Энергетиков ","627144, Тюменская обл, Заводоуковский р-н, Заводоуковск г, Энергетиков ул, дом № 43, корпус б","03.07.2014","Пивной напиток ТМ \"IGUANA\" Черный русский (Амаретто) 1,5л пэт 6,9%/6"]
["18.07.2014",null,null,null,null,12,6,"Воронов Дмитрий","Форсаж \"Статус\" Энергетиков ","627144, Тюменская обл, Заводоуковский р-н, Заводоуковск г, Энергетиков ул, дом № 43, корпус б","18.07.2014","Пивной напиток ТМ \"IGUANA\" Черный русский (Амаретто) 1,5л пэт 6,9%/6"]
["Пивной напиток ТМ \"IGUANA\" Ароматный лимон 0,5л пэт 6,9%/12",null,null,null,null,6,8,"Воронов Дмитрий","Форсаж \"Статус\" Энергетиков ","627144, Тюменская обл, Заводоуковский р-н, Заводоуковск г, Энергетиков ул, дом № 43, корпус б","18.07.2014","Пивной напиток ТМ \"IGUANA\" Ароматный лимон 0,5л пэт 6,9%/12"]
["Пивной напиток ТМ \"IGUANA\" Мохито (лимон, мята, лайм) 0,5л пэт 6,9%/12",null,null,null,null,6,8,"Воронов Дмитрий","Форсаж \"Статус\" Энергетиков ","627144, Тюменская обл, Заводоуковский р-н, Заводоуковск г, Энергетиков ул, дом № 43, корпус б","18.07.2014","Пивной напиток ТМ \"IGUANA\" Мохито (лимон, мята, лайм) 0,5л пэт 6,9%/12"]
["Зубарева Анастасия",null,null,null,null,618,0,"Зубарева Анастасия","Форсаж \"Статус\" Энергетиков ","627144, Тюменская обл, Заводоуковский р-н, Заводоуковск г, Энергетиков ул, дом № 43, корпус б","18.07.2014","Пивной напиток ТМ \"IGUANA\" Мохито (лимон, мята, лайм) 0,5л пэт 6,9%/12"]
["Азизов М.Ш.о \"Статус\"",null,null,null,null,24,2,"Зубарева Анастасия","Азизов М.Ш.о \"Статус\"","627144, Тюменская обл, Заводоуковский р-н, Заводоуковск г, Энергетиков ул, дом № 43, корпус б","18.07.2014","Пивной напиток ТМ \"IGUANA\" Мохито (лимон, мята, лайм) 0,5л пэт 6,9%/12"]
["625022, Тюменская обл, Тюмень г, Щербакова ул, дом № 120",null,null,null,null,24,4,"Зубарева Анастасия","Азизов М.Ш.о \"Статус\"","625022, Тюменская обл, Тюмень г, Щербакова ул, дом № 120","18.07.2014","Пивной напиток ТМ \"IGUANA\" Мохито (лимон, мята, лайм) 0,5л пэт 6,9%/12"]
["11.07.2014",null,null,null,null,24,6,"Зубарева Анастасия","Азизов М.Ш.о \"Статус\"","625022, Тюменская обл, Тюмень г, Щербакова ул, дом № 120","11.07.2014","Пивной напиток ТМ \"IGUANA\" Мохито (лимон, мята, лайм) 0,5л пэт 6,9%/12"]
["Пивной напиток \"BATL-X\" Блэк Джек 0,5л ж/б 6,9%/12",null,null,null,null,6,8,"Зубарева Анастасия","Азизов М.Ш.о \"Статус\"","625022, Тюменская обл, Тюмень г, Щербакова ул, дом № 120","11.07.2014","Пивной напиток \"BATL-X\" Блэк Джек 0,5л ж/б 6,9%/12"]
["Пивной напиток \"BATL-X\" Истребитель 0,5л ж/б 6,9%/12",null,null,null,null,6,8,"Зубарева Анастасия","Азизов М.Ш.о \"Статус\"","625022, Тюменская обл, Тюмень г, Щербакова ул, дом № 120","11.07.2014","Пивной напиток \"BATL-X\" Истребитель 0,5л ж/б 6,9%/12"]
["Пивной напиток \"BATL-X\" Мятный Джин 0,5л ж/б 6,9%/12",null,null,null,null,6,8,"Зубарева Анастасия","Азизов М.Ш.о \"Статус\"","625022, Тюменская обл, Тюмень г, Щербакова ул, дом № 120","11.07.2014","Пивной напиток \"BATL-X\" Мятный Джин 0,5л ж/б 6,9%/12"]
["Пивной напиток \"BATL-X\" Черри Джин 0,5л ж/б 6,9%/12",null,null,null,null,6,8,"Зубарева Анастасия","Азизов М.Ш.о \"Статус\"","625022, Тюменская обл, Тюмень г, Щербакова ул, дом № 120","11.07.2014","Пивной напиток \"BATL-X\" Черри Джин 0,5л ж/б 6,9%/12"]
["Велиев Д Г \"Статус\"",null,null,null,null,72,2,"Зубарева Анастасия","Велиев Д Г \"Статус\"","625022, Тюменская обл, Тюмень г, Щербакова ул, дом № 120","11.07.2014","Пивной напиток \"BATL-X\" Черри Джин 0,5л ж/б 6,9%/12"]
["625059, Тюменская обл, Тюмень г, Мелиораторов ул, дом № 1",null,null,null,null,72,4,"Зубарева Анастасия","Велиев Д Г \"Статус\"","625059, Тюменская обл, Тюмень г, Мелиораторов ул, дом № 1","11.07.2014","Пивной напиток \"BATL-X\" Черри Джин 0,5л ж/б 6,9%/12"]
["08.07.2014",null,null,null,null,72,6,"Зубарева Анастасия","Велиев Д Г \"Статус\"","625059, Тюменская обл, Тюмень г, Мелиораторов ул, дом № 1","08.07.2014","Пивной напиток \"BATL-X\" Черри Джин 0,5л ж/б 6,9%/12"]
["Пивной напиток ТМ \"IGUANA\" Ароматный лимон 1,5л пэт 6,9%/6",null,null,null,null,6,8,"Зубарева Анастасия","Велиев Д Г \"Статус\"","625059, Тюменская обл, Тюмень г, Мелиораторов ул, дом № 1","08.07.2014","Пивной напиток ТМ \"IGUANA\" Ароматный лимон 1,5л пэт 6,9%/6"]
["Пивной напиток ТМ \"IGUANA\" Белый виноград 1,5л пэт 6,9%/6",null,null,null,null,6,8,"Зубарева Анастасия","Велиев Д Г \"Статус\"","625059, Тюменская обл, Тюмень г, Мелиораторов ул, дом № 1","08.07.2014","Пивной напиток ТМ \"IGUANA\" Белый виноград 1,5л пэт 6,9%/6"]
["Пивной напиток ТМ \"IGUANA\" Гранат 1,5л пэт 6,9%/6",null,null,null,null,6,8,"Зубарева Анастасия","Велиев Д Г \"Статус\"","625059, Тюменская обл, Тюмень г, Мелиораторов ул, дом № 1","08.07.2014","Пивной напиток ТМ \"IGUANA\" Гранат 1,5л пэт 6,9%/6"]
["Пивной напиток ТМ \"IGUANA\" Дайкири Тропик (апел. марак. персик) 1,5л пэт 6,9%/6",null,null,null,null,6,8,"Зубарева Анастасия","Велиев Д Г \"Статус\"","625059, Тюменская обл, Тюмень г, Мелиораторов ул, дом № 1","08.07.2014","Пивной напиток ТМ \"IGUANA\" Дайкири Тропик (апел. марак. персик) 1,5л пэт 6,9%/6"]
["Пивной напиток ТМ \"IGUANA\" Джин-тоник 1,5л пэт 6,9%/6",null,null,null,null,6,8,"Зубарева Анастасия","Велиев Д Г \"Статус\"","625059, Тюменская обл, Тюмень г, Мелиораторов ул, дом № 1","08.07.2014","Пивной напиток ТМ \"IGUANA\" Джин-тоник 1,5л пэт 6,9%/6"]
["Пивной напиток ТМ \"IGUANA\" Джин-тоник Розовый грейпфрут 1,5л пэт 6,9%/6",null,null,null,null,6,8,"Зубарева Анастасия","Велиев Д Г \"Статус\"","625059, Тюменская обл, Тюмень г, Мелиораторов ул, дом № 1","08.07.2014","Пивной напиток ТМ \"IGUANA\" Джин-тоник Розовый грейпфрут 1,5л пэт 6,9%/6"]
["Пивной напиток ТМ \"IGUANA\" Мохито (лимон, лайм, мята) 1,5л пэт 6,9%/6",null,null,null,null,6,8,"Зубарева Анастасия","Велиев Д Г \"Статус\"","625059, Тюменская обл, Тюмень г, Мелиораторов ул, дом № 1","08.07.2014","Пивной напиток ТМ \"IGUANA\" Мохито (лимон, лайм, мята) 1,5л пэт 6,9%/6"]
["Пивной напиток ТМ \"IGUANA\" Пряная клюква 1,5л пэт 6,9%/6",null,null,null,null,6,8,"Зубарева Анастасия","Велиев Д Г \"Статус\"","625059, Тюменская обл, Тюмень г, Мелиораторов ул, дом № 1","08.07.2014","Пивной напиток ТМ \"IGUANA\" Пряная клюква 1,5л пэт 6,9%/6"]
["Пивной напиток ТМ \"IGUANA\" Пьяная вишня 1,5л пэт 6,9%/6",null,null,null,null,6,8,"Зубарева Анастасия","Велиев Д Г \"Статус\"","625059, Тюменская обл, Тюмень г, Мелиораторов ул, дом № 1","08.07.2014","Пивной напиток ТМ \"IGUANA\" Пьяная вишня 1,5л пэт 6,9%/6"]
["Пивной напиток ТМ \"IGUANA\" Сочный апельсин 1,5л пэт 6,9%/6",null,null,null,null,6,8,"Зубарева Анастасия","Велиев Д Г \"Статус\"","625059, Тюменская обл, Тюмень г, Мелиораторов ул, дом № 1","08.07.2014","Пивной напиток ТМ \"IGUANA\" Сочный апельсин 1,5л пэт 6,9%/6"]
["Пивной напиток ТМ \"IGUANA\" Черный русский (Амаретто) 1,5л пэт 6,9%/6",null,null,null,null,6,8,"Зубарева Анастасия","Велиев Д Г \"Статус\"","625059, Тюменская обл, Тюмень г, Мелиораторов ул, дом № 1","08.07.2014","Пивной напиток ТМ \"IGUANA\" Черный русский (Амаретто) 1,5л пэт 6,9%/6"]
["Пивной напиток ТМ \"IGUANA\" Черный русский (Виски-кола) 1,5л пэт 6,9%/6",null,null,null,null,6,8,"Зубарева Анастасия","Велиев Д Г \"Статус\"","625059, Тюменская обл, Тюмень г, Мелиораторов ул, дом № 1","08.07.2014","Пивной напиток ТМ \"IGUANA\" Черный русский (Виски-кола) 1,5л пэт 6,9%/6"]
["Виктория\"Статус\"Щербакова",null,null,null,null,6,2,"Зубарева Анастасия","Виктория\"Статус\"Щербакова","625059, Тюменская обл, Тюмень г, Мелиораторов ул, дом № 1","08.07.2014","Пивной напиток ТМ \"IGUANA\" Черный русский (Виски-кола) 1,5л пэт 6,9%/6"]
["625005, Тюменская обл, Тюмень г, Щербакова ул, дом № 53",null,null,null,null,6,4,"Зубарева Анастасия","Виктория\"Статус\"Щербакова","625005, Тюменская обл, Тюмень г, Щербакова ул, дом № 53","08.07.2014","Пивной напиток ТМ \"IGUANA\" Черный русский (Виски-кола) 1,5л пэт 6,9%/6"]
["24.07.2014",null,null,null,null,6,6,"Зубарева Анастасия","Виктория\"Статус\"Щербакова","625005, Тюменская обл, Тюмень г, Щербакова ул, дом № 53","24.07.2014","Пивной напиток ТМ \"IGUANA\" Черный русский (Виски-кола) 1,5л пэт 6,9%/6"]
["Пивной напиток ТМ \"IGUANA\" Пьяная вишня 1,5л пэт 6,9%/6",null,null,null,null,3,8,"Зубарева Анастасия","Виктория\"Статус\"Щербакова","625005, Тюменская обл, Тюмень г, Щербакова ул, дом № 53","24.07.2014","Пивной напиток ТМ \"IGUANA\" Пьяная вишня 1,5л пэт 6,9%/6"]
["Пивной напиток ТМ \"IGUANA\" Черный русский (Виски-кола) 1,5л пэт 6,9%/6",null,null,null,null,3,8,"Зубарева Анастасия","Виктория\"Статус\"Щербакова","625005, Тюменская обл, Тюмень г, Щербакова ул, дом № 53","24.07.2014","Пивной напиток ТМ \"IGUANA\" Черный русский (Виски-кола) 1,5л пэт 6,9%/6"]
["Лунная ночь  \"Статус\"Шаимский",null,null,null,null,48,2,"Зубарева Анастасия","Лунная ночь  \"Статус\"Шаимский","625005, Тюменская обл, Тюмень г, Щербакова ул, дом № 53","24.07.2014","Пивной напиток ТМ \"IGUANA\" Черный русский (Виски-кола) 1,5л пэт 6,9%/6"]
["625031, Тюменская обл, Тюмень г, Шаимский проезд, дом № 6а, корпус 1",null,null,null,null,48,4,"Зубарева Анастасия","Лунная ночь  \"Статус\"Шаимский","625031, Тюменская обл, Тюмень г, Шаимский проезд, дом № 6а, корпус 1","24.07.2014","Пивной напиток ТМ \"IGUANA\" Черный русский (Виски-кола) 1,5л пэт 6,9%/6"]
["04.07.2014",null,null,null,null,48,6,"Зубарева Анастасия","Лунная ночь  \"Статус\"Шаимский","625031, Тюменская обл, Тюмень г, Шаимский проезд, дом № 6а, корпус 1","04.07.2014","Пивной напиток ТМ \"IGUANA\" Черный русский (Виски-кола) 1,5л пэт 6,9%/6"]
["Пивной напиток ТМ \"IGUANA\" Белый виноград 1,5л пэт 6,9%/6",null,null,null,null,6,8,"Зубарева Анастасия","Лунная ночь  \"Статус\"Шаимский","625031, Тюменская обл, Тюмень г, Шаимский проезд, дом № 6а, корпус 1","04.07.2014","Пивной напиток ТМ \"IGUANA\" Белый виноград 1,5л пэт 6,9%/6"]
["Пивной напиток ТМ \"IGUANA\" Джин-тоник 1,5л пэт 6,9%/6",null,null,null,null,6,8,"Зубарева Анастасия","Лунная ночь  \"Статус\"Шаимский","625031, Тюменская обл, Тюмень г, Шаимский проезд, дом № 6а, корпус 1","04.07.2014","Пивной напиток ТМ \"IGUANA\" Джин-тоник 1,5л пэт 6,9%/6"]
["Пивной напиток ТМ \"IGUANA\" Мохито (лимон, лайм, мята) 1,5л пэт 6,9%/6",null,null,null,null,6,8,"Зубарева Анастасия","Лунная ночь  \"Статус\"Шаимский","625031, Тюменская обл, Тюмень г, Шаимский проезд, дом № 6а, корпус 1","04.07.2014","Пивной напиток ТМ \"IGUANA\" Мохито (лимон, лайм, мята) 1,5л пэт 6,9%/6"]
["Пивной напиток ТМ \"IGUANA\" Пряная клюква 1,5л пэт 6,9%/6",null,null,null,null,6,8,"Зубарева Анастасия","Лунная ночь  \"Статус\"Шаимский","625031, Тюменская обл, Тюмень г, Шаимский проезд, дом № 6а, корпус 1","04.07.2014","Пивной напиток ТМ \"IGUANA\" Пряная клюква 1,5л пэт 6,9%/6"]
["Пивной напиток ТМ \"IGUANA\" Пьяная вишня 0,5л пэт 6,9%/12",null,null,null,null,12,8,"Зубарева Анастасия","Лунная ночь  \"Статус\"Шаимский","625031, Тюменская обл, Тюмень г, Шаимский проезд, дом № 6а, корпус 1","04.07.2014","Пивной напиток ТМ \"IGUANA\" Пьяная вишня 0,5л пэт 6,9%/12"]
["Пивной напиток ТМ \"IGUANA\" Черный русский (виски-кола) 0,5л пэт 6,9%/12",null,null,null,null,12,8,"Зубарева Анастасия","Лунная ночь  \"Статус\"Шаимский","625031, Тюменская обл, Тюмень г, Шаимский проезд, дом № 6а, корпус 1","04.07.2014","Пивной напиток ТМ \"IGUANA\" Черный русский (виски-кола) 0,5л пэт 6,9%/12"]
["Мамедов З Д Газовиков \"Статус\"",null,null,null,null,96,2,"Зубарева Анастасия","Мамедов З Д Газовиков \"Статус\"","625031, Тюменская обл, Тюмень г, Шаимский проезд, дом № 6а, корпус 1","04.07.2014","Пивной напиток ТМ \"IGUANA\" Черный русский (виски-кола) 0,5л пэт 6,9%/12"]
["625022, Тюменская обл, Тюмень г, Газовиков ул, дом № 12",null,null,null,null,96,4,"Зубарева Анастасия","Мамедов З Д Газовиков \"Статус\"","625022, Тюменская обл, Тюмень г, Газовиков ул, дом № 12","04.07.2014","Пивной напиток ТМ \"IGUANA\" Черный русский (виски-кола) 0,5л пэт 6,9%/12"]
["11.07.2014",null,null,null,null,30,6,"Зубарева Анастасия","Мамедов З Д Газовиков \"Статус\"","625022, Тюменская обл, Тюмень г, Газовиков ул, дом № 12","11.07.2014","Пивной напиток ТМ \"IGUANA\" Черный русский (виски-кола) 0,5л пэт 6,9%/12"]
["Пивной напиток ТМ \"IGUANA\" Белый виноград 0,5л пэт 6,9%/12",null,null,null,null,12,8,"Зубарева Анастасия","Мамедов З Д Газовиков \"Статус\"","625022, Тюменская обл, Тюмень г, Газовиков ул, дом № 12","11.07.2014","Пивной напиток ТМ \"IGUANA\" Белый виноград 0,5л пэт 6,9%/12"]
["Пивной напиток ТМ \"IGUANA\" Джин-тоник 1,5л пэт 6,9%/6",null,null,null,null,6,8,"Зубарева Анастасия","Мамедов З Д Газовиков \"Статус\"","625022, Тюменская обл, Тюмень г, Газовиков ул, дом № 12","11.07.2014","Пивной напиток ТМ \"IGUANA\" Джин-тоник 1,5л пэт 6,9%/6"]
["Пивной напиток ТМ \"IGUANA\" Мохито (лимон, мята, лайм) 0,5л пэт 6,9%/12",null,null,null,null,12,8,"Зубарева Анастасия","Мамедов З Д Газовиков \"Статус\"","625022, Тюменская обл, Тюмень г, Газовиков ул, дом № 12","11.07.2014","Пивной напиток ТМ \"IGUANA\" Мохито (лимон, мята, лайм) 0,5л пэт 6,9%/12"]
["31.07.2014",null,null,null,null,66,6,"Зубарева Анастасия","Мамедов З Д Газовиков \"Статус\"","625022, Тюменская обл, Тюмень г, Газовиков ул, дом № 12","31.07.2014","Пивной напиток ТМ \"IGUANA\" Мохито (лимон, мята, лайм) 0,5л пэт 6,9%/12"]
["Пивной напиток ТМ \"IGUANA\" Ароматный лимон 0,5л пэт 6,9%/12",null,null,null,null,12,8,"Зубарева Анастасия","Мамедов З Д Газовиков \"Статус\"","625022, Тюменская обл, Тюмень г, Газовиков ул, дом № 12","31.07.2014","Пивной напиток ТМ \"IGUANA\" Ароматный лимон 0,5л пэт 6,9%/12"]
["Пивной напиток ТМ \"IGUANA\" Ароматный лимон 1,5л пэт 6,9%/6",null,null,null,null,6,8,"Зубарева Анастасия","Мамедов З Д Газовиков \"Статус\"","625022, Тюменская обл, Тюмень г, Газовиков ул, дом № 12","31.07.2014","Пивной напиток ТМ \"IGUANA\" Ароматный лимон 1,5л пэт 6,9%/6"]
["Пивной напиток ТМ \"IGUANA\" Джин-тоник 1,5л пэт 6,9%/6",null,null,null,null,6,8,"Зубарева Анастасия","Мамедов З Д Газовиков \"Статус\"","625022, Тюменская обл, Тюмень г, Газовиков ул, дом № 12","31.07.2014","Пивной напиток ТМ \"IGUANA\" Джин-тоник 1,5л пэт 6,9%/6"]
["Пивной напиток ТМ \"IGUANA\" Джин-тоник Розовый грейпфрут 1,5л пэт 6,9%/6",null,null,null,null,6,8,"Зубарева Анастасия","Мамедов З Д Газовиков \"Статус\"","625022, Тюменская обл, Тюмень г, Газовиков ул, дом № 12","31.07.2014","Пивной напиток ТМ \"IGUANA\" Джин-тоник Розовый грейпфрут 1,5л пэт 6,9%/6"]
["Пивной напиток ТМ \"IGUANA\" Мохито (лимон, лайм, мята) 1,5л пэт 6,9%/6",null,null,null,null,6,{"$f":"otst($A199)","v":8},{"$f":"IF($G199=H$5,$A199,H198)","v":"Зубарева Анастасия"},{"$f":"IF($G199=I$5,$A199,I198)","v":"Мамедов З Д Газовиков \"Статус\""},{"$f":"IF($G199=J$5,$A199,J198)","v":"625022, Тюменская обл, Тюмень г, Газовиков ул, дом № 12"},{"$f":"IF($G199=K$5,$A199,K198)","v":"31.07.2014"},{"$f":"IF($G199=L$5,$A199,L198)","v":"Пивной напиток ТМ \"IGUANA\" Мохито (лимон, лайм, мята) 1,5л пэт 6,9%/6"}]
["Пивной напиток ТМ \"IGUANA\" Сочный апельсин 1,5л пэт 6,9%/6",null,null,null,null,6,8,"Зубарева Анастасия","Мамедов З Д Газовиков \"Статус\"","625022, Тюменская обл, Тюмень г, Газовиков ул, дом № 12","31.07.2014","Пивной напиток ТМ \"IGUANA\" Сочный апельсин 1,5л пэт 6,9%/6"]
["Пивной напиток ТМ \"IGUANA\" Черный русский (Амаретто) 1,5л пэт 6,9%/6",null,null,null,null,6,8,"Зубарева Анастасия","Мамедов З Д Газовиков \"Статус\"","625022, Тюменская обл, Тюмень г, Газовиков ул, дом № 12","31.07.2014","Пивной напиток ТМ \"IGUANA\" Черный русский (Амаретто) 1,5л пэт 6,9%/6"]
["Пивной напиток ТМ \"IGUANA\" Черный русский (Виски-кола) 1,5л пэт 6,9%/6",null,null,null,null,6,8,"Зубарева Анастасия","Мамедов З Д Газовиков \"Статус\"","625022, Тюменская обл, Тюмень г, Газовиков ул, дом № 12","31.07.2014","Пивной напиток ТМ \"IGUANA\" Черный русский (Виски-кола) 1,5л пэт 6,9%/6"]
["Энергетический напиток ТМ \"IGUANA\" Драйв (красные ягоды) 0,5л ж/б /12",null,null,null,null,6,8,"Зубарева Анастасия","Мамедов З Д Газовиков \"Статус\"","625022, Тюменская обл, Тюмень г, Газовиков ул, дом № 12","31.07.2014","Энергетический напиток ТМ \"IGUANA\" Драйв (красные ягоды) 0,5л ж/б /12"]
["Энергетический напиток ТМ \"IGUANA\" Тропикана (апельсин, маракуйя) 0,5л ж/б /12",null,null,null,null,6,8,"Зубарева Анастасия","Мамедов З Д Газовиков \"Статус\"","625022, Тюменская обл, Тюмень г, Газовиков ул, дом № 12","31.07.2014","Энергетический напиток ТМ \"IGUANA\" Тропикана (апельсин, маракуйя) 0,5л ж/б /12"]
["Сибирь \"Статус\"",null,null,null,null,24,2,"Зубарева Анастасия","Сибирь \"Статус\"","625022, Тюменская обл, Тюмень г, Газовиков ул, дом № 12","31.07.2014","Энергетический напиток ТМ \"IGUANA\" Тропикана (апельсин, маракуйя) 0,5л ж/б /12"]
["625001, Тюменская обл, Тюмень г, Мельзаводская ул, дом № 54",null,null,null,null,24,4,"Зубарева Анастасия","Сибирь \"Статус\"","625001, Тюменская обл, Тюмень г, Мельзаводская ул, дом № 54","31.07.2014","Энергетический напиток ТМ \"IGUANA\" Тропикана (апельсин, маракуйя) 0,5л ж/б /12"]
["31.07.2014",null,null,null,null,24,6,"Зубарева Анастасия","Сибирь \"Статус\"","625001, Тюменская обл, Тюмень г, Мельзаводская ул, дом № 54","31.07.2014","Энергетический напиток ТМ \"IGUANA\" Тропикана (апельсин, маракуйя) 0,5л ж/б /12"]
["Пивной напиток \"BATL-X\" Блэк Джек 0,5л ж/б 6,9%/12",null,null,null,null,6,8,"Зубарева Анастасия","Сибирь \"Статус\"","625001, Тюменская обл, Тюмень г, Мельзаводская ул, дом № 54","31.07.2014","Пивной напиток \"BATL-X\" Блэк Джек 0,5л ж/б 6,9%/12"]
["Пивной напиток \"BATL-X\" Истребитель 0,5л ж/б 6,9%/12",null,null,null,null,6,8,"Зубарева Анастасия","Сибирь \"Статус\"","625001, Тюменская обл, Тюмень г, Мельзаводская ул, дом № 54","31.07.2014","Пивной напиток \"BATL-X\" Истребитель 0,5л ж/б 6,9%/12"]
["Пивной напиток \"BATL-X\" Мятный Джин 0,5л ж/б 6,9%/12",null,null,null,null,6,8,"Зубарева Анастасия","Сибирь \"Статус\"","625001, Тюменская обл, Тюмень г, Мельзаводская ул, дом № 54","31.07.2014","Пивной напиток \"BATL-X\" Мятный Джин 0,5л ж/б 6,9%/12"]
["Пивной напиток \"BATL-X\" Черри Джин 0,5л ж/б 6,9%/12",null,null,null,null,6,8,"Зубарева Анастасия","Сибирь \"Статус\"","625001, Тюменская обл, Тюмень г, Мельзаводская ул, дом № 54","31.07.2014","Пивной напиток \"BATL-X\" Черри Джин 0,5л ж/б 6,9%/12"]
["Сказка  Плюс \"Статус\"",null,null,null,null,24,2,"Зубарева Анастасия","Сказка  Плюс \"Статус\"","625001, Тюменская обл, Тюмень г, Мельзаводская ул, дом № 54","31.07.2014","Пивной напиток \"BATL-X\" Черри Джин 0,5л ж/б 6,9%/12"]
["625062, Тюменская обл, Тюмень г, Чаплина ул, дом № 126",null,null,null,null,24,4,"Зубарева Анастасия","Сказка  Плюс \"Статус\"","625062, Тюменская обл, Тюмень г, Чаплина ул, дом № 126","31.07.2014","Пивной напиток \"BATL-X\" Черри Джин 0,5л ж/б 6,9%/12"]
["24.07.2014",null,null,null,null,24,6,"Зубарева Анастасия","Сказка  Плюс \"Статус\"","625062, Тюменская обл, Тюмень г, Чаплина ул, дом № 126","24.07.2014","Пивной напиток \"BATL-X\" Черри Джин 0,5л ж/б 6,9%/12"]
["Пивной напиток ТМ \"IGUANA\" Ароматный лимон 1,5л пэт 6,9%/6",null,null,null,null,6,8,"Зубарева Анастасия","Сказка  Плюс \"Статус\"","625062, Тюменская обл, Тюмень г, Чаплина ул, дом № 126","24.07.2014","Пивной напиток ТМ \"IGUANA\" Ароматный лимон 1,5л пэт 6,9%/6"]
["Пивной напиток ТМ \"IGUANA\" Белый виноград 1,5л пэт 6,9%/6",null,null,null,null,6,8,"Зубарева Анастасия","Сказка  Плюс \"Статус\"","625062, Тюменская обл, Тюмень г, Чаплина ул, дом № 126","24.07.2014","Пивной напиток ТМ \"IGUANA\" Белый виноград 1,5л пэт 6,9%/6"]
["Пивной напиток ТМ \"IGUANA\" Джин-тоник 1,5л пэт 6,9%/6",null,null,null,null,6,8,"Зубарева Анастасия","Сказка  Плюс \"Статус\"","625062, Тюменская обл, Тюмень г, Чаплина ул, дом № 126","24.07.2014","Пивной напиток ТМ \"IGUANA\" Джин-тоник 1,5л пэт 6,9%/6"]
["Пивной напиток ТМ \"IGUANA\" Сочный апельсин 1,5л пэт 6,9%/6",null,null,null,null,6,8,"Зубарева Анастасия","Сказка  Плюс \"Статус\"","625062, Тюменская обл, Тюмень г, Чаплина ул, дом № 126","24.07.2014","Пивной напиток ТМ \"IGUANA\" Сочный апельсин 1,5л пэт 6,9%/6"]
["Суворова\"Статус\"Комбинатская",null,null,null,null,18,2,"Зубарева Анастасия","Суворова\"Статус\"Комбинатская","625062, Тюменская обл, Тюмень г, Чаплина ул, дом № 126","24.07.2014","Пивной напиток ТМ \"IGUANA\" Сочный апельсин 1,5л пэт 6,9%/6"]
["625001, Тюменская обл, Тюмень г, Комбинатская ул, дом № 52а",null,null,null,null,18,4,"Зубарева Анастасия","Суворова\"Статус\"Комбинатская","625001, Тюменская обл, Тюмень г, Комбинатская ул, дом № 52а","24.07.2014","Пивной напиток ТМ \"IGUANA\" Сочный апельсин 1,5л пэт 6,9%/6"]
["22.07.2014",null,null,null,null,18,6,"Зубарева Анастасия","Суворова\"Статус\"Комбинатская","625001, Тюменская обл, Тюмень г, Комбинатская ул, дом № 52а","22.07.2014","Пивной напиток ТМ \"IGUANA\" Сочный апельсин 1,5л пэт 6,9%/6"]
["Пивной напиток \"BATL-X\" Истребитель 0,5л ж/б 6,9%/12",null,null,null,null,6,8,"Зубарева Анастасия","Суворова\"Статус\"Комбинатская","625001, Тюменская обл, Тюмень г, Комбинатская ул, дом № 52а","22.07.2014","Пивной напиток \"BATL-X\" Истребитель 0,5л ж/б 6,9%/12"]
["Пивной напиток \"BATL-X\" Черри Джин 0,5л ж/б 6,9%/12",null,null,null,null,6,8,"Зубарева Анастасия","Суворова\"Статус\"Комбинатская","625001, Тюменская обл, Тюмень г, Комбинатская ул, дом № 52а","22.07.2014","Пивной напиток \"BATL-X\" Черри Джин 0,5л ж/б 6,9%/12"]
["Пивной напиток ТМ \"IGUANA\" Пьяная вишня 1,5л пэт 6,9%/6",null,null,null,null,6,8,"Зубарева Анастасия","Суворова\"Статус\"Комбинатская","625001, Тюменская обл, Тюмень г, Комбинатская ул, дом № 52а","22.07.2014","Пивной напиток ТМ \"IGUANA\" Пьяная вишня 1,5л пэт 6,9%/6"]
["Успех Аккомуляторная\"Статус\"",null,null,null,null,72,2,"Зубарева Анастасия","Успех Аккомуляторная\"Статус\"","625001, Тюменская обл, Тюмень г, Комбинатская ул, дом № 52а","22.07.2014","Пивной напиток ТМ \"IGUANA\" Пьяная вишня 1,5л пэт 6,9%/6"]
["625017, Тюменская обл, Тюмень г, Аккумуляторная ул, дом № 2",null,null,null,null,72,4,"Зубарева Анастасия","Успех Аккомуляторная\"Статус\"","625017, Тюменская обл, Тюмень г, Аккумуляторная ул, дом № 2","22.07.2014","Пивной напиток ТМ \"IGUANA\" Пьяная вишня 1,5л пэт 6,9%/6"]
["16.07.2014",null,null,null,null,72,6,"Зубарева Анастасия","Успех Аккомуляторная\"Статус\"","625017, Тюменская обл, Тюмень г, Аккумуляторная ул, дом № 2","16.07.2014","Пивной напиток ТМ \"IGUANA\" Пьяная вишня 1,5л пэт 6,9%/6"]
["Пивной напиток ТМ \"IGUANA\" Ароматный лимон 0,5л пэт 6,9%/12",null,null,null,null,24,8,"Зубарева Анастасия","Успех Аккомуляторная\"Статус\"","625017, Тюменская обл, Тюмень г, Аккумуляторная ул, дом № 2","16.07.2014","Пивной напиток ТМ \"IGUANA\" Ароматный лимон 0,5л пэт 6,9%/12"]
["Пивной напиток ТМ \"IGUANA\" Дайкири Тропик (апел. марак. персик)0,5л пэт 6,9%/12",null,null,null,null,12,8,"Зубарева Анастасия","Успех Аккомуляторная\"Статус\"","625017, Тюменская обл, Тюмень г, Аккумуляторная ул, дом № 2","16.07.2014","Пивной напиток ТМ \"IGUANA\" Дайкири Тропик (апел. марак. персик)0,5л пэт 6,9%/12"]
["Пивной напиток ТМ \"IGUANA\" Мохито (лимон, мята, лайм) 0,5л пэт 6,9%/12",null,null,null,null,12,8,"Зубарева Анастасия","Успех Аккомуляторная\"Статус\"","625017, Тюменская обл, Тюмень г, Аккумуляторная ул, дом № 2","16.07.2014","Пивной напиток ТМ \"IGUANA\" Мохито (лимон, мята, лайм) 0,5л пэт 6,9%/12"]
["Пивной напиток ТМ \"IGUANA\" Пьяная вишня 0,5л пэт 6,9%/12",null,null,null,null,12,8,"Зубарева Анастасия","Успех Аккомуляторная\"Статус\"","625017, Тюменская обл, Тюмень г, Аккумуляторная ул, дом № 2","16.07.2014","Пивной напиток ТМ \"IGUANA\" Пьяная вишня 0,5л пэт 6,9%/12"]
["Пивной напиток ТМ \"IGUANA\" Черный русский (виски-кола) 0,5л пэт 6,9%/12",null,null,null,null,12,8,"Зубарева Анастасия","Успех Аккомуляторная\"Статус\"","625017, Тюменская обл, Тюмень г, Аккумуляторная ул, дом № 2","16.07.2014","Пивной напиток ТМ \"IGUANA\" Черный русский (виски-кола) 0,5л пэт 6,9%/12"]
["Уточкина\"Статус\" ",null,null,null,null,24,2,"Зубарева Анастасия","Уточкина\"Статус\" ","625017, Тюменская обл, Тюмень г, Аккумуляторная ул, дом № 2","16.07.2014","Пивной напиток ТМ \"IGUANA\" Черный русский (виски-кола) 0,5л пэт 6,9%/12"]
["625017, Тюменская обл, Тюмень г, Аккумуляторная ул, дом № 2",null,null,null,null,24,4,"Зубарева Анастасия","Уточкина\"Статус\" ","625017, Тюменская обл, Тюмень г, Аккумуляторная ул, дом № 2","16.07.2014","Пивной напиток ТМ \"IGUANA\" Черный русский (виски-кола) 0,5л пэт 6,9%/12"]
["31.07.2014",null,null,null,null,24,6,"Зубарева Анастасия","Уточкина\"Статус\" ","625017, Тюменская обл, Тюмень г, Аккумуляторная ул, дом № 2","31.07.2014","Пивной напиток ТМ \"IGUANA\" Черный русский (виски-кола) 0,5л пэт 6,9%/12"]
["Пивной напиток \"BATL-X\" Блэк Джек 0,5л ж/б 6,9%/12",null,null,null,null,6,8,"Зубарева Анастасия","Уточкина\"Статус\" ","625017, Тюменская обл, Тюмень г, Аккумуляторная ул, дом № 2","31.07.2014","Пивной напиток \"BATL-X\" Блэк Джек 0,5л ж/б 6,9%/12"]
["Пивной напиток \"BATL-X\" Истребитель 0,5л ж/б 6,9%/12",null,null,null,null,6,8,"Зубарева Анастасия","Уточкина\"Статус\" ","625017, Тюменская обл, Тюмень г, Аккумуляторная ул, дом № 2","31.07.2014","Пивной напиток \"BATL-X\" Истребитель 0,5л ж/б 6,9%/12"]
["Пивной напиток \"BATL-X\" Мятный Джин 0,5л ж/б 6,9%/12",null,null,null,null,6,8,"Зубарева Анастасия","Уточкина\"Статус\" ","625017, Тюменская обл, Тюмень г, Аккумуляторная ул, дом № 2","31.07.2014","Пивной напиток \"BATL-X\" Мятный Джин 0,5л ж/б 6,9%/12"]
["Пивной напиток \"BATL-X\" Черри Джин 0,5л ж/б 6,9%/12",null,null,null,null,6,8,"Зубарева Анастасия","Уточкина\"Статус\" ","625017, Тюменская обл, Тюмень г, Аккумуляторная ул, дом № 2","31.07.2014","Пивной напиток \"BATL-X\" Черри Джин 0,5л ж/б 6,9%/12"]
["Финпримэкс Курчатова\"Статус\"",null,null,null,null,18,2,"Зубарева Анастасия","Финпримэкс Курчатова\"Статус\"","625017, Тюменская обл, Тюмень г, Аккумуляторная ул, дом № 2","31.07.2014","Пивной напиток \"BATL-X\" Черри Джин 0,5л ж/б 6,9%/12"]
["625001, Тюменская обл, Тюмень г, Курчатова ул, дом № 16",null,null,null,null,18,4,"Зубарева Анастасия","Финпримэкс Курчатова\"Статус\"","625001, Тюменская обл, Тюмень г, Курчатова ул, дом № 16","31.07.2014","Пивной напиток \"BATL-X\" Черри Джин 0,5л ж/б 6,9%/12"]
["31.07.2014",null,null,null,null,18,6,"Зубарева Анастасия","Финпримэкс Курчатова\"Статус\"","625001, Тюменская обл, Тюмень г, Курчатова ул, дом № 16","31.07.2014","Пивной напиток \"BATL-X\" Черри Джин 0,5л ж/б 6,9%/12"]
["Пивной напиток ТМ \"IGUANA\" Ароматный лимон 1,5л пэт 6,9%/6",null,null,null,null,6,8,"Зубарева Анастасия","Финпримэкс Курчатова\"Статус\"","625001, Тюменская обл, Тюмень г, Курчатова ул, дом № 16","31.07.2014","Пивной напиток ТМ \"IGUANA\" Ароматный лимон 1,5л пэт 6,9%/6"]
["Пивной напиток ТМ \"IGUANA\" Пряная клюква 1,5л пэт 6,9%/6",null,null,null,null,6,8,"Зубарева Анастасия","Финпримэкс Курчатова\"Статус\"","625001, Тюменская обл, Тюмень г, Курчатова ул, дом № 16","31.07.2014","Пивной напиток ТМ \"IGUANA\" Пряная клюква 1,5л пэт 6,9%/6"]
["Пивной напиток ТМ \"IGUANA\" Сочный апельсин 1,5л пэт 6,9%/6",null,null,null,null,6,8,"Зубарева Анастасия","Финпримэкс Курчатова\"Статус\"","625001, Тюменская обл, Тюмень г, Курчатова ул, дом № 16","31.07.2014","Пивной напиток ТМ \"IGUANA\" Сочный апельсин 1,5л пэт 6,9%/6"]
["Минасян Ваге",null,null,null,null,681,0,"Минасян Ваге","Финпримэкс Курчатова\"Статус\"","625001, Тюменская обл, Тюмень г, Курчатова ул, дом № 16","31.07.2014","Пивной напиток ТМ \"IGUANA\" Сочный апельсин 1,5л пэт 6,9%/6"]
["Алекс \"Статус\"",null,null,null,null,12,2,"Минасян Ваге","Алекс \"Статус\"","625001, Тюменская обл, Тюмень г, Курчатова ул, дом № 16","31.07.2014","Пивной напиток ТМ \"IGUANA\" Сочный апельсин 1,5л пэт 6,9%/6"]
["627014, Тюменская обл, Ялуторовский р-н, Ялуторовск г, Гроховского ул, дом № 90",null,null,null,null,12,4,"Минасян Ваге","Алекс \"Статус\"","627014, Тюменская обл, Ялуторовский р-н, Ялуторовск г, Гроховского ул, дом № 90","31.07.2014","Пивной напиток ТМ \"IGUANA\" Сочный апельсин 1,5л пэт 6,9%/6"]
["18.07.2014",null,null,null,null,12,6,"Минасян Ваге","Алекс \"Статус\"","627014, Тюменская обл, Ялуторовский р-н, Ялуторовск г, Гроховского ул, дом № 90","18.07.2014","Пивной напиток ТМ \"IGUANA\" Сочный апельсин 1,5л пэт 6,9%/6"]
["Пивной напиток ТМ \"IGUANA\" Джин-тоник 1,5л пэт 6,9%/6",null,null,null,null,12,8,"Минасян Ваге","Алекс \"Статус\"","627014, Тюменская обл, Ялуторовский р-н, Ялуторовск г, Гроховского ул, дом № 90","18.07.2014","Пивной напиток ТМ \"IGUANA\" Джин-тоник 1,5л пэт 6,9%/6"]
["Бафтинг \"Статус\"  Поселковая",null,null,null,null,12,2,"Минасян Ваге","Бафтинг \"Статус\"  Поселковая","627014, Тюменская обл, Ялуторовский р-н, Ялуторовск г, Гроховского ул, дом № 90","18.07.2014","Пивной напиток ТМ \"IGUANA\" Джин-тоник 1,5л пэт 6,9%/6"]
["627013, Тюменская обл, Ялуторовский р-н, Ялуторовск г, Поселковая ул, дом № 75",null,null,null,null,12,4,"Минасян Ваге","Бафтинг \"Статус\"  Поселковая","627013, Тюменская обл, Ялуторовский р-н, Ялуторовск г, Поселковая ул, дом № 75","18.07.2014","Пивной напиток ТМ \"IGUANA\" Джин-тоник 1,5л пэт 6,9%/6"]
["31.07.2014",null,null,null,null,12,6,"Минасян Ваге","Бафтинг \"Статус\"  Поселковая","627013, Тюменская обл, Ялуторовский р-н, Ялуторовск г, Поселковая ул, дом № 75","31.07.2014","Пивной напиток ТМ \"IGUANA\" Джин-тоник 1,5л пэт 6,9%/6"]
["Пивной напиток ТМ \"IGUANA\" Ароматный лимон 0,5л пэт 6,9%/12",null,null,null,null,3,8,"Минасян Ваге","Бафтинг \"Статус\"  Поселковая","627013, Тюменская обл, Ялуторовский р-н, Ялуторовск г, Поселковая ул, дом № 75","31.07.2014","Пивной напиток ТМ \"IGUANA\" Ароматный лимон 0,5л пэт 6,9%/12"]
["Пивной напиток ТМ \"IGUANA\" Дайкири Тропик (апел. марак. персик)0,5л пэт 6,9%/12",null,null,null,null,3,8,"Минасян Ваге","Бафтинг \"Статус\"  Поселковая","627013, Тюменская обл, Ялуторовский р-н, Ялуторовск г, Поселковая ул, дом № 75","31.07.2014","Пивной напиток ТМ \"IGUANA\" Дайкири Тропик (апел. марак. персик)0,5л пэт 6,9%/12"]
["Пивной напиток ТМ \"IGUANA\" Пьяная вишня 0,5л пэт 6,9%/12",null,null,null,null,3,8,"Минасян Ваге","Бафтинг \"Статус\"  Поселковая","627013, Тюменская обл, Ялуторовский р-н, Ялуторовск г, Поселковая ул, дом № 75","31.07.2014","Пивной напиток ТМ \"IGUANA\" Пьяная вишня 0,5л пэт 6,9%/12"]
["Пивной напиток ТМ \"IGUANA\" Черный русский (виски-кола) 0,5л пэт 6,9%/12",null,null,null,null,3,8,"Минасян Ваге","Бафтинг \"Статус\"  Поселковая","627013, Тюменская обл, Ялуторовский р-н, Ялуторовск г, Поселковая ул, дом № 75","31.07.2014","Пивной напиток ТМ \"IGUANA\" Черный русский (виски-кола) 0,5л пэт 6,9%/12"]
["Бафтинг \"Статус\"  Свободы ",null,null,null,null,18,2,"Минасян Ваге","Бафтинг \"Статус\"  Свободы ","627013, Тюменская обл, Ялуторовский р-н, Ялуторовск г, Поселковая ул, дом № 75","31.07.2014","Пивной напиток ТМ \"IGUANA\" Черный русский (виски-кола) 0,5л пэт 6,9%/12"]
["627016, Тюменская обл, Ялуторовский р-н, Ялуторовск г, Свободы ул, дом № 228",null,null,null,null,18,4,"Минасян Ваге","Бафтинг \"Статус\"  Свободы ","627016, Тюменская обл, Ялуторовский р-н, Ялуторовск г, Свободы ул, дом № 228","31.07.2014","Пивной напиток ТМ \"IGUANA\" Черный русский (виски-кола) 0,5л пэт 6,9%/12"]
["22.07.2014",null,null,null,null,6,6,"Минасян Ваге","Бафтинг \"Статус\"  Свободы ","627016, Тюменская обл, Ялуторовский р-н, Ялуторовск г, Свободы ул, дом № 228","22.07.2014","Пивной напиток ТМ \"IGUANA\" Черный русский (виски-кола) 0,5л пэт 6,9%/12"]
["Пивной напиток ТМ \"IGUANA\" Джин-тоник 1,5л пэт 6,9%/6",null,null,null,null,6,8,"Минасян Ваге","Бафтинг \"Статус\"  Свободы ","627016, Тюменская обл, Ялуторовский р-н, Ялуторовск г, Свободы ул, дом № 228","22.07.2014","Пивной напиток ТМ \"IGUANA\" Джин-тоник 1,5л пэт 6,9%/6"]
["29.07.2014",null,null,null,null,12,6,"Минасян Ваге","Бафтинг \"Статус\"  Свободы ","627016, Тюменская обл, Ялуторовский р-н, Ялуторовск г, Свободы ул, дом № 228","29.07.2014","Пивной напиток ТМ \"IGUANA\" Джин-тоник 1,5л пэт 6,9%/6"]
["Пивной напиток ТМ \"IGUANA\" Гранат 1,5л пэт 6,9%/6",null,null,null,null,6,{"$f":"otst($A263)","v":8},{"$f":"IF($G263=H$5,$A263,H262)","v":"Минасян Ваге"},{"$f":"IF($G263=I$5,$A263,I262)","v":"Бафтинг \"Статус\"  Свободы "},{"$f":"IF($G263=J$5,$A263,J262)","v":"627016, Тюменская обл, Ялуторовский р-н, Ялуторовск г, Свободы ул, дом № 228"},{"$f":"IF($G263=K$5,$A263,K262)","v":"29.07.2014"},{"$f":"IF($G263=L$5,$A263,L262)","v":"Пивной напиток ТМ \"IGUANA\" Гранат 1,5л пэт 6,9%/6"}]
["Пивной напиток ТМ \"IGUANA\" Пьяная вишня 1,5л пэт 6,9%/6",null,null,null,null,6,8,"Минасян Ваге","Бафтинг \"Статус\"  Свободы ","627016, Тюменская обл, Ялуторовский р-н, Ялуторовск г, Свободы ул, дом № 228","29.07.2014","Пивной напиток ТМ \"IGUANA\" Пьяная вишня 1,5л пэт 6,9%/6"]
["Бойлер \"Статус\"",null,null,null,null,30,2,"Минасян Ваге","Бойлер \"Статус\"","627016, Тюменская обл, Ялуторовский р-н, Ялуторовск г, Свободы ул, дом № 228","29.07.2014","Пивной напиток ТМ \"IGUANA\" Пьяная вишня 1,5л пэт 6,9%/6"]
["627033, Тюменская обл, Ялуторовский р-н, Киево с, Школьная ул, дом № 19/1",null,null,null,null,30,4,"Минасян Ваге","Бойлер \"Статус\"","627033, Тюменская обл, Ялуторовский р-н, Киево с, Школьная ул, дом № 19/1","29.07.2014","Пивной напиток ТМ \"IGUANA\" Пьяная вишня 1,5л пэт 6,9%/6"]
["23.07.2014",null,null,null,null,18,6,"Минасян Ваге","Бойлер \"Статус\"","627033, Тюменская обл, Ялуторовский р-н, Киево с, Школьная ул, дом № 19/1","23.07.2014","Пивной напиток ТМ \"IGUANA\" Пьяная вишня 1,5л пэт 6,9%/6"]
["Пивной напиток ТМ \"IGUANA\" Гранат 1,5л пэт 6,9%/6",null,null,null,null,6,8,"Минасян Ваге","Бойлер \"Статус\"","627033, Тюменская обл, Ялуторовский р-н, Киево с, Школьная ул, дом № 19/1","23.07.2014","Пивной напиток ТМ \"IGUANA\" Гранат 1,5л пэт 6,9%/6"]
["Пивной напиток ТМ \"IGUANA\" Мохито (лимон, лайм, мята) 1,5л пэт 6,9%/6",null,null,null,null,6,8,"Минасян Ваге","Бойлер \"Статус\"","627033, Тюменская обл, Ялуторовский р-н, Киево с, Школьная ул, дом № 19/1","23.07.2014","Пивной напиток ТМ \"IGUANA\" Мохито (лимон, лайм, мята) 1,5л пэт 6,9%/6"]
["Пивной напиток ТМ \"IGUANA\" Черный русский (Амаретто) 1,5л пэт 6,9%/6",null,null,null,null,6,8,"Минасян Ваге","Бойлер \"Статус\"","627033, Тюменская обл, Ялуторовский р-н, Киево с, Школьная ул, дом № 19/1","23.07.2014","Пивной напиток ТМ \"IGUANA\" Черный русский (Амаретто) 1,5л пэт 6,9%/6"]
["30.07.2014",null,null,null,null,12,6,"Минасян Ваге","Бойлер \"Статус\"","627033, Тюменская обл, Ялуторовский р-н, Киево с, Школьная ул, дом № 19/1","30.07.2014","Пивной напиток ТМ \"IGUANA\" Черный русский (Амаретто) 1,5л пэт 6,9%/6"]
["Пивной напиток ТМ \"IGUANA\" Джин-тоник 1,5л пэт 6,9%/6",null,null,null,null,6,8,"Минасян Ваге","Бойлер \"Статус\"","627033, Тюменская обл, Ялуторовский р-н, Киево с, Школьная ул, дом № 19/1","30.07.2014","Пивной напиток ТМ \"IGUANA\" Джин-тоник 1,5л пэт 6,9%/6"]
["Пивной напиток ТМ \"IGUANA\" Мохито (лимон, лайм, мята) 1,5л пэт 6,9%/6",null,null,null,null,6,8,"Минасян Ваге","Бойлер \"Статус\"","627033, Тюменская обл, Ялуторовский р-н, Киево с, Школьная ул, дом № 19/1","30.07.2014","Пивной напиток ТМ \"IGUANA\" Мохито (лимон, лайм, мята) 1,5л пэт 6,9%/6"]
["Гамма Губина \"Статус\"",null,null,null,null,30,2,"Минасян Ваге","Гамма Губина \"Статус\"","627033, Тюменская обл, Ялуторовский р-н, Киево с, Школьная ул, дом № 19/1","30.07.2014","Пивной напиток ТМ \"IGUANA\" Мохито (лимон, лайм, мята) 1,5л пэт 6,9%/6"]
["627016, Тюменская обл, Ялуторовский р-н, Ялуторовск г, Губина ул, дом № 67а",null,null,null,null,30,4,"Минасян Ваге","Гамма Губина \"Статус\"","627016, Тюменская обл, Ялуторовский р-н, Ялуторовск г, Губина ул, дом № 67а","30.07.2014","Пивной напиток ТМ \"IGUANA\" Мохито (лимон, лайм, мята) 1,5л пэт 6,9%/6"]
["09.07.2014",null,null,null,null,30,6,"Минасян Ваге","Гамма Губина \"Статус\"","627016, Тюменская обл, Ялуторовский р-н, Ялуторовск г, Губина ул, дом № 67а","09.07.2014","Пивной напиток ТМ \"IGUANA\" Мохито (лимон, лайм, мята) 1,5л пэт 6,9%/6"]
["Пивной напиток ТМ \"IGUANA\" Джин-тоник 0,5л пэт 6,9%/12",null,null,null,null,3,8,"Минасян Ваге","Гамма Губина \"Статус\"","627016, Тюменская обл, Ялуторовский р-н, Ялуторовск г, Губина ул, дом № 67а","09.07.2014","Пивной напиток ТМ \"IGUANA\" Джин-тоник 0,5л пэт 6,9%/12"]
["Пивной напиток ТМ \"IGUANA\" Джин-тоник 1,5л пэт 6,9%/6",null,null,null,null,6,8,"Минасян Ваге","Гамма Губина \"Статус\"","627016, Тюменская обл, Ялуторовский р-н, Ялуторовск г, Губина ул, дом № 67а","09.07.2014","Пивной напиток ТМ \"IGUANA\" Джин-тоник 1,5л пэт 6,9%/6"]
["Пивной напиток ТМ \"IGUANA\" Мохито (лимон, лайм, мята) 1,5л пэт 6,9%/6",null,null,null,null,6,8,"Минасян Ваге","Гамма Губина \"Статус\"","627016, Тюменская обл, Ялуторовский р-н, Ялуторовск г, Губина ул, дом № 67а","09.07.2014","Пивной напиток ТМ \"IGUANA\" Мохито (лимон, лайм, мята) 1,5л пэт 6,9%/6"]
["Пивной напиток ТМ \"IGUANA\" Мохито (лимон, мята, лайм) 0,5л пэт 6,9%/12",null,null,null,null,3,8,"Минасян Ваге","Гамма Губина \"Статус\"","627016, Тюменская обл, Ялуторовский р-н, Ялуторовск г, Губина ул, дом № 67а","09.07.2014","Пивной напиток ТМ \"IGUANA\" Мохито (лимон, мята, лайм) 0,5л пэт 6,9%/12"]
["Пивной напиток ТМ \"IGUANA\" Пьяная вишня 0,5л пэт 6,9%/12",null,null,null,null,3,8,"Минасян Ваге","Гамма Губина \"Статус\"","627016, Тюменская обл, Ялуторовский р-н, Ялуторовск г, Губина ул, дом № 67а","09.07.2014","Пивной напиток ТМ \"IGUANA\" Пьяная вишня 0,5л пэт 6,9%/12"]
["Пивной напиток ТМ \"IGUANA\" Черный русский (виски-кола) 0,5л пэт 6,9%/12",null,null,null,null,3,8,"Минасян Ваге","Гамма Губина \"Статус\"","627016, Тюменская обл, Ялуторовский р-н, Ялуторовск г, Губина ул, дом № 67а","09.07.2014","Пивной напиток ТМ \"IGUANA\" Черный русский (виски-кола) 0,5л пэт 6,9%/12"]
["Пивной напиток ТМ \"IGUANA\" Черный русский (Виски-кола) 1,5л пэт 6,9%/6",null,null,null,null,6,8,"Минасян Ваге","Гамма Губина \"Статус\"","627016, Тюменская обл, Ялуторовский р-н, Ялуторовск г, Губина ул, дом № 67а","09.07.2014","Пивной напиток ТМ \"IGUANA\" Черный русский (Виски-кола) 1,5л пэт 6,9%/6"]
["Гамма Зиново \"Статус\"",null,null,null,null,48,2,"Минасян Ваге","Гамма Зиново \"Статус\"","627016, Тюменская обл, Ялуторовский р-н, Ялуторовск г, Губина ул, дом № 67а","09.07.2014","Пивной напиток ТМ \"IGUANA\" Черный русский (Виски-кола) 1,5л пэт 6,9%/6"]
["627031, Тюменская обл, Ялуторовский р-н, Зиново с, Советская ул, дом № 2а",null,null,null,null,48,4,"Минасян Ваге","Гамма Зиново \"Статус\"","627031, Тюменская обл, Ялуторовский р-н, Зиново с, Советская ул, дом № 2а","09.07.2014","Пивной напиток ТМ \"IGUANA\" Черный русский (Виски-кола) 1,5л пэт 6,9%/6"]
["09.07.2014",null,null,null,null,18,6,"Минасян Ваге","Гамма Зиново \"Статус\"","627031, Тюменская обл, Ялуторовский р-н, Зиново с, Советская ул, дом № 2а","09.07.2014","Пивной напиток ТМ \"IGUANA\" Черный русский (Виски-кола) 1,5л пэт 6,9%/6"]
["Пивной напиток ТМ \"IGUANA\" Ароматный лимон 1,5л пэт 6,9%/6",null,null,null,null,6,8,"Минасян Ваге","Гамма Зиново \"Статус\"","627031, Тюменская обл, Ялуторовский р-н, Зиново с, Советская ул, дом № 2а","09.07.2014","Пивной напиток ТМ \"IGUANA\" Ароматный лимон 1,5л пэт 6,9%/6"]
["Пивной напиток ТМ \"IGUANA\" Джин-тоник 1,5л пэт 6,9%/6",null,null,null,null,6,8,"Минасян Ваге","Гамма Зиново \"Статус\"","627031, Тюменская обл, Ялуторовский р-н, Зиново с, Советская ул, дом № 2а","09.07.2014","Пивной напиток ТМ \"IGUANA\" Джин-тоник 1,5л пэт 6,9%/6"]
["Пивной напиток ТМ \"IGUANA\" Мохито (лимон, лайм, мята) 1,5л пэт 6,9%/6",null,null,null,null,6,8,"Минасян Ваге","Гамма Зиново \"Статус\"","627031, Тюменская обл, Ялуторовский р-н, Зиново с, Советская ул, дом № 2а","09.07.2014","Пивной напиток ТМ \"IGUANA\" Мохито (лимон, лайм, мята) 1,5л пэт 6,9%/6"]
["23.07.2014",null,null,null,null,30,6,"Минасян Ваге","Гамма Зиново \"Статус\"","627031, Тюменская обл, Ялуторовский р-н, Зиново с, Советская ул, дом № 2а","23.07.2014","Пивной напиток ТМ \"IGUANA\" Мохито (лимон, лайм, мята) 1,5л пэт 6,9%/6"]
["Пивной напиток ТМ \"IGUANA\" Мохито (лимон, мята, лайм) 0,5л пэт 6,9%/12",null,null,null,null,3,8,"Минасян Ваге","Гамма Зиново \"Статус\"","627031, Тюменская обл, Ялуторовский р-н, Зиново с, Советская ул, дом № 2а","23.07.2014","Пивной напиток ТМ \"IGUANA\" Мохито (лимон, мята, лайм) 0,5л пэт 6,9%/12"]
["Пивной напиток ТМ \"IGUANA\" Пряная клюква 1,5л пэт 6,9%/6",null,null,null,null,6,8,"Минасян Ваге","Гамма Зиново \"Статус\"","627031, Тюменская обл, Ялуторовский р-н, Зиново с, Советская ул, дом № 2а","23.07.2014","Пивной напиток ТМ \"IGUANA\" Пряная клюква 1,5л пэт 6,9%/6"]
["Пивной напиток ТМ \"IGUANA\" Пьяная вишня 0,5л пэт 6,9%/12",null,null,null,null,3,8,"Минасян Ваге","Гамма Зиново \"Статус\"","627031, Тюменская обл, Ялуторовский р-н, Зиново с, Советская ул, дом № 2а","23.07.2014","Пивной напиток ТМ \"IGUANA\" Пьяная вишня 0,5л пэт 6,9%/12"]
["Пивной напиток ТМ \"IGUANA\" Розовый грейпфрут 0,5л пэт 6,9%/12",null,null,null,null,3,8,"Минасян Ваге","Гамма Зиново \"Статус\"","627031, Тюменская обл, Ялуторовский р-н, Зиново с, Советская ул, дом № 2а","23.07.2014","Пивной напиток ТМ \"IGUANA\" Розовый грейпфрут 0,5л пэт 6,9%/12"]
["Пивной напиток ТМ \"IGUANA\" Черный русский (Амаретто) 1,5л пэт 6,9%/6",null,null,null,null,6,8,"Минасян Ваге","Гамма Зиново \"Статус\"","627031, Тюменская обл, Ялуторовский р-н, Зиново с, Советская ул, дом № 2а","23.07.2014","Пивной напиток ТМ \"IGUANA\" Черный русский (Амаретто) 1,5л пэт 6,9%/6"]
["Пивной напиток ТМ \"IGUANA\" Черный русский (виски-кола) 0,5л пэт 6,9%/12",null,null,null,null,3,8,"Минасян Ваге","Гамма Зиново \"Статус\"","627031, Тюменская обл, Ялуторовский р-н, Зиново с, Советская ул, дом № 2а","23.07.2014","Пивной напиток ТМ \"IGUANA\" Черный русский (виски-кола) 0,5л пэт 6,9%/12"]
["Пивной напиток ТМ \"IGUANA\" Черный русский (Виски-кола) 1,5л пэт 6,9%/6",null,null,null,null,6,8,"Минасян Ваге","Гамма Зиново \"Статус\"","627031, Тюменская обл, Ялуторовский р-н, Зиново с, Советская ул, дом № 2а","23.07.2014","Пивной напиток ТМ \"IGUANA\" Черный русский (Виски-кола) 1,5л пэт 6,9%/6"]
["Гранд \"Статус\" Ялуторовск г,  Васильковая ул",null,null,null,null,12,2,"Минасян Ваге","Гранд \"Статус\" Ялуторовск г,  Васильковая ул","627031, Тюменская обл, Ялуторовский р-н, Зиново с, Советская ул, дом № 2а","23.07.2014","Пивной напиток ТМ \"IGUANA\" Черный русский (Виски-кола) 1,5л пэт 6,9%/6"]
["627014, Тюменская обл, Ялуторовский р-н, Ялуторовск г, Васильковая ул, дом № 23",null,null,null,null,12,4,"Минасян Ваге","Гранд \"Статус\" Ялуторовск г,  Васильковая ул","627014, Тюменская обл, Ялуторовский р-н, Ялуторовск г, Васильковая ул, дом № 23","23.07.2014","Пивной напиток ТМ \"IGUANA\" Черный русский (Виски-кола) 1,5л пэт 6,9%/6"]
["18.07.2014",null,null,null,null,12,6,"Минасян Ваге","Гранд \"Статус\" Ялуторовск г,  Васильковая ул","627014, Тюменская обл, Ялуторовский р-н, Ялуторовск г, Васильковая ул, дом № 23","18.07.2014","Пивной напиток ТМ \"IGUANA\" Черный русский (Виски-кола) 1,5л пэт 6,9%/6"]
["Пивной напиток \"BATL-X\" Мятный Джин 0,5л ж/б 6,9%/12",null,null,null,null,6,8,"Минасян Ваге","Гранд \"Статус\" Ялуторовск г,  Васильковая ул","627014, Тюменская обл, Ялуторовский р-н, Ялуторовск г, Васильковая ул, дом № 23","18.07.2014","Пивной напиток \"BATL-X\" Мятный Джин 0,5л ж/б 6,9%/12"]
["Энергетический напиток ТМ \"IGUANA\" Драйв (красные ягоды) 0,5л ж/б /12",null,null,null,null,6,8,"Минасян Ваге","Гранд \"Статус\" Ялуторовск г,  Васильковая ул","627014, Тюменская обл, Ялуторовский р-н, Ялуторовск г, Васильковая ул, дом № 23","18.07.2014","Энергетический напиток ТМ \"IGUANA\" Драйв (красные ягоды) 0,5л ж/б /12"]
["Гранд \"Статус\" Ялуторовск г, Свердлова ул,",null,null,null,null,18,2,"Минасян Ваге","Гранд \"Статус\" Ялуторовск г, Свердлова ул,","627014, Тюменская обл, Ялуторовский р-н, Ялуторовск г, Васильковая ул, дом № 23","18.07.2014","Энергетический напиток ТМ \"IGUANA\" Драйв (красные ягоды) 0,5л ж/б /12"]
["627014, Тюменская обл, Ялуторовский р-н, Ялуторовск г, Свердлова ул, дом № 49",null,null,null,null,18,4,"Минасян Ваге","Гранд \"Статус\" Ялуторовск г, Свердлова ул,","627014, Тюменская обл, Ялуторовский р-н, Ялуторовск г, Свердлова ул, дом № 49","18.07.2014","Энергетический напиток ТМ \"IGUANA\" Драйв (красные ягоды) 0,5л ж/б /12"]
["22.07.2014",null,null,null,null,18,6,"Минасян Ваге","Гранд \"Статус\" Ялуторовск г, Свердлова ул,","627014, Тюменская обл, Ялуторовский р-н, Ялуторовск г, Свердлова ул, дом № 49","22.07.2014","Энергетический напиток ТМ \"IGUANA\" Драйв (красные ягоды) 0,5л ж/б /12"]
["Пивной напиток ТМ \"IGUANA\" Белый виноград 1,5л пэт 6,9%/6",null,null,null,null,6,8,"Минасян Ваге","Гранд \"Статус\" Ялуторовск г, Свердлова ул,","627014, Тюменская обл, Ялуторовский р-н, Ялуторовск г, Свердлова ул, дом № 49","22.07.2014","Пивной напиток ТМ \"IGUANA\" Белый виноград 1,5л пэт 6,9%/6"]
["Пивной напиток ТМ \"IGUANA\" Сочный апельсин 1,5л пэт 6,9%/6",null,null,null,null,6,8,"Минасян Ваге","Гранд \"Статус\" Ялуторовск г, Свердлова ул,","627014, Тюменская обл, Ялуторовский р-н, Ялуторовск г, Свердлова ул, дом № 49","22.07.2014","Пивной напиток ТМ \"IGUANA\" Сочный апельсин 1,5л пэт 6,9%/6"]
["Пивной напиток ТМ \"IGUANA\" Черный русский (Виски-кола) 1,5л пэт 6,9%/6",null,null,null,null,6,8,"Минасян Ваге","Гранд \"Статус\" Ялуторовск г, Свердлова ул,","627014, Тюменская обл, Ялуторовский р-н, Ялуторовск г, Свердлова ул, дом № 49","22.07.2014","Пивной напиток ТМ \"IGUANA\" Черный русский (Виски-кола) 1,5л пэт 6,9%/6"]
["Новикова Анна",null,null,null,null,678,0,"Новикова Анна","Гранд \"Статус\" Ялуторовск г, Свердлова ул,","627014, Тюменская обл, Ялуторовский р-н, Ялуторовск г, Свердлова ул, дом № 49","22.07.2014","Пивной напиток ТМ \"IGUANA\" Черный русский (Виски-кола) 1,5л пэт 6,9%/6"]
["Армада - \"Статус\" Геологоразведчиков 22",null,null,null,null,30,2,"Новикова Анна","Армада - \"Статус\" Геологоразведчиков 22","627014, Тюменская обл, Ялуторовский р-н, Ялуторовск г, Свердлова ул, дом № 49","22.07.2014","Пивной напиток ТМ \"IGUANA\" Черный русский (Виски-кола) 1,5л пэт 6,9%/6"]
["625035, Тюменская обл, Тюмень г, Геологоразведчиков проезд, дом № 22",null,null,null,null,30,4,"Новикова Анна","Армада - \"Статус\" Геологоразведчиков 22","625035, Тюменская обл, Тюмень г, Геологоразведчиков проезд, дом № 22","22.07.2014","Пивной напиток ТМ \"IGUANA\" Черный русский (Виски-кола) 1,5л пэт 6,9%/6"]
["08.07.2014",null,null,null,null,30,6,"Новикова Анна","Армада - \"Статус\" Геологоразведчиков 22","625035, Тюменская обл, Тюмень г, Геологоразведчиков проезд, дом № 22","08.07.2014","Пивной напиток ТМ \"IGUANA\" Черный русский (Виски-кола) 1,5л пэт 6,9%/6"]
["Пивной напиток ТМ \"IGUANA\" Джин-тоник 1,5л пэт 6,9%/6",null,null,null,null,6,8,"Новикова Анна","Армада - \"Статус\" Геологоразведчиков 22","625035, Тюменская обл, Тюмень г, Геологоразведчиков проезд, дом № 22","08.07.2014","Пивной напиток ТМ \"IGUANA\" Джин-тоник 1,5л пэт 6,9%/6"]
["Пивной напиток ТМ \"IGUANA\" Мохито (лимон, лайм, мята) 1,5л пэт 6,9%/6",null,null,null,null,6,8,"Новикова Анна","Армада - \"Статус\" Геологоразведчиков 22","625035, Тюменская обл, Тюмень г, Геологоразведчиков проезд, дом № 22","08.07.2014","Пивной напиток ТМ \"IGUANA\" Мохито (лимон, лайм, мята) 1,5л пэт 6,9%/6"]
["Пивной напиток ТМ \"IGUANA\" Пряная клюква 1,5л пэт 6,9%/6",null,null,null,null,6,8,"Новикова Анна","Армада - \"Статус\" Геологоразведчиков 22","625035, Тюменская обл, Тюмень г, Геологоразведчиков проезд, дом № 22","08.07.2014","Пивной напиток ТМ \"IGUANA\" Пряная клюква 1,5л пэт 6,9%/6"]
["Пивной напиток ТМ \"IGUANA\" Пьяная вишня 1,5л пэт 6,9%/6",null,null,null,null,6,8,"Новикова Анна","Армада - \"Статус\" Геологоразведчиков 22","625035, Тюменская обл, Тюмень г, Геологоразведчиков проезд, дом № 22","08.07.2014","Пивной напиток ТМ \"IGUANA\" Пьяная вишня 1,5л пэт 6,9%/6"]
["Пивной напиток ТМ \"IGUANA\" Черный русский (Амаретто) 1,5л пэт 6,9%/6",null,null,null,null,6,8,"Новикова Анна","Армада - \"Статус\" Геологоразведчиков 22","625035, Тюменская обл, Тюмень г, Геологоразведчиков проезд, дом № 22","08.07.2014","Пивной напиток ТМ \"IGUANA\" Черный русский (Амаретто) 1,5л пэт 6,9%/6"]
["Армада - \"Статус\" Севастопольская",null,null,null,null,12,2,"Новикова Анна","Армада - \"Статус\" Севастопольская","625035, Тюменская обл, Тюмень г, Геологоразведчиков проезд, дом № 22","08.07.2014","Пивной напиток ТМ \"IGUANA\" Черный русский (Амаретто) 1,5л пэт 6,9%/6"]
["625013, Тюменская обл, Тюмень г, Севастопольская ул, дом № 4а",null,null,null,null,12,4,"Новикова Анна","Армада - \"Статус\" Севастопольская","625013, Тюменская обл, Тюмень г, Севастопольская ул, дом № 4а","08.07.2014","Пивной напиток ТМ \"IGUANA\" Черный русский (Амаретто) 1,5л пэт 6,9%/6"]
["23.07.2014",null,null,null,null,12,6,"Новикова Анна","Армада - \"Статус\" Севастопольская","625013, Тюменская обл, Тюмень г, Севастопольская ул, дом № 4а","23.07.2014","Пивной напиток ТМ \"IGUANA\" Черный русский (Амаретто) 1,5л пэт 6,9%/6"]
["Пивной напиток ТМ \"IGUANA\" Мохито (лимон, лайм, мята) 1,5л пэт 6,9%/6",null,null,null,null,6,8,"Новикова Анна","Армада - \"Статус\" Севастопольская","625013, Тюменская обл, Тюмень г, Севастопольская ул, дом № 4а","23.07.2014","Пивной напиток ТМ \"IGUANA\" Мохито (лимон, лайм, мята) 1,5л пэт 6,9%/6"]
["Пивной напиток ТМ \"IGUANA\" Пряная клюква 1,5л пэт 6,9%/6",null,null,null,null,6,8,"Новикова Анна","Армада - \"Статус\" Севастопольская","625013, Тюменская обл, Тюмень г, Севастопольская ул, дом № 4а","23.07.2014","Пивной напиток ТМ \"IGUANA\" Пряная клюква 1,5л пэт 6,9%/6"]